Workbook

Sheet Poles
A1: Draw | B1: Rider Name | C1: Horse Name | D1: Poles | E1: Time | F1: Final Time | G1: Placing | H1: Money Earned
A2: 52
A3: 49
A4: 23
A5: 45
A6: 44
A7: 54
A8: 58
A9: 56
A10: 5
A11: 42
A12: 2
A13: 24
A14: 13
A15: 1
A16: 57
A17: 6
A18: 14
A19: 18
A20: 8
A21: 9
A22: 28
A23: 20
A24: 46
A25: 53
A26: 61
A27: 55
A28: 64
A29: 19
A30: 63
A31: 7
A32: 43
A33: 11
A34: 41
A35: 51
A36: 48
A37: 25
A38: 3
A39: 27
A40: 21
A41: 4
A42: 47
A43: 26
A44: 17
A45: 12
A46: 50
A47: 10
A48: 16
A49: 22
A50: 59
A51: 60
A52: 62
A53: 15
A54: 29
A55: 30
A56: 31
A57: 32
A58: 33
A59: 34
A60: 35
A61: 36
A62: 37
A63: 38
A64: 39
A65: 40

Sheet Open
A1: JULY 4th Barrels
A3: Futurity | B3: Der | C3: HS | D3: Age Inct. | E3: Open C/O | F3: YOU | G3: Draw | H3: Rider Name | I3: Horse Name | J3: Pen | K3: Time | L3: Final Time | M3: Placing | N3: Money Earned | P3: D Placing | R3: Split
D4: A | G4: 58 | H4: Kinsey Chandler | I4: Judge Knott | K4: 15.816 | M4: 1st | N4: 932.64 | P4: 1D
D5: A | G5: 161 | H5: Stephanie Snazuk | I5: SR Ima Royal Streaker | K5: 15.852 | M5: 2nd | N5: 771.84 | P5: 2D | R5: 0.5
G6: 153 | H6: Payton Schoeppach | I6: The Mafia Boss | K6: 15.865 | M6: 3rd | N6: 611.04 | P6: 4D | R6: 0.5
D7: S | G7: 98 | H7: Lisa Wernli | I7: Flashes Fine Effort | K7: 16.061 | M7: 4th | N7: 450.24
G8: 81 | H8: Lacy Kimball | I8: Stayabay | K8: 16.077 | M8: 5th | N8: 289.44 | P8: # Entered
G9: 200 | H9: Jamie Olsen | I9: Miss Famous Bedueno | K9: 16.079 | M9: 6th | N9: 160.8 | P9: =COUNTA(H4:H537) -> 224
B10: X | G10: 116 | H10: Amanda Clark | I10: Dancin For Fame | K10: 16.09
G11: 201 | H11: Hillary Hightower | I11: Hanks Bug Bomber | K11: 16.097 | P11: # Ran
G12: 64 | H12: Becky Dillard | I12: Shesa Hot Loop | K12: 16.13 | P12: =COUNTA(K4:K537) -> 224
G13: 113 | H13: Christi Durfey | I13: Jess Blazin Otoe | K13: 16.147
G14: 102 | H14: Becky Dillard | I14: Wow Shes Hot | K14: 16.17 | P14: # Left
D15: A | G15: 202 | H15: Cassidy Rabb | I15: VF Temptations | K15: 16.191 | P15: =$P$9-$P$12 -> 0
C16: X | G16: 40 | H16: Mike Robertson | I16: Simba The Texas Jet | K16: 16.193
D17: S | G17: 145 | H17: Jenny Zant | I17: Raise Me Ta Fame | K17: 16.204
G18: 213 | H18: Davie King | I18: Rhonda | K18: 16.242
A19: X | G19: 86 | H19: Nisa Berry | I19: NB Keep N Time | K19: 16.244
G20: 75 | H20: Krista Whitley | I20: Fabulace Fame | K20: 16.28
A21: X | G21: 122 | H21: Jackie Whitcher | I21: Blackjack Bay | K21: 16.295
G22: 56 | H22: Kayli Morris | I22: Fortune N Fuel | K22: 16.299
A23: X | G23: 24 | H23: Heidi Becker | I23: No Lion Kims Flying | K23: 16.32 | M23: 2D 1st | N23: 777.2
D24: A | G24: 78 | H24: Bianca Dos Santos | I24: Dashin Quickly | K24: 16.324 | M24: 2D 2nd | N24: 643.2
D25: A | G25: 156 | H25: Kappie Bryant | I25: Party Rocker | K25: 16.329 | M25: 2D 3rd | N25: 509.2
G26: 89 | H26: Hadley Durfey | I26: Delightful Brownies | K26: 16.342 | M26: 2D 4th | N26: 375.2
G27: 35 | H27: Lacey Harmon | I27: Designed To Gab | K27: 16.344 | M27: 2D 5th | N27: 241.2
G28: 175 | H28: Mandy Smith | I28: Madaconfederatetwist | K28: 16.364 | M28: 2D 6th | N28: 134
G29: 85 | H29: Lisa Lucia | I29: Sticks Chic | K29: 16.385
D30: S | G30: 193 | H30: Amy Swan | I30: Boons Prescription | K30: 16.392
D31: S | G31: 168 | H31: Lynn Saunders | I31: Chumley | K31: 16.397
G32: 66 | H32: Nikki Cain | I32: Shakem Baby Shakem | K32: 16.433
G33: 8 | H33: Karen Gaida | I33: Kiss This Guy Too | K33: 16.435
D34: S | G34: 134 | H34: Lisa Wernli | I34: Babe On The Run | K34: 16.44
G35: 26 | H35: Sage Tomeu | I35: Stella | K35: 16.441
G36: 31 | H36: Maggie Pytlik | I36: Karma | K36: 16.448
G37: 30 | H37: Nikki Cain | I37: Smooth Finances | K37: 16.463
G38: 164 | H38: Katie Perkins | I38: Carmella | K38: 16.465
G39: 151 | H39: Nisa Berry | I39: Banking Ta Fame | K39: 16.476
B40: X | G40: 135 | H40: Jana Stripe | I40: Kc High Pick | K40: 16.482
G41: 83 | H41: Amanda Clark | I41: Dillon Remedy | K41: 16.482
G42: 179 | H42: Savannah Mantooth | I42: Feature Me French | K42: 16.492
G43: 117 | H43: Mike Robertson | I43: Sweet Kinda Lion | K43: 16.499
D44: S | G44: 97 | H44: Terry Vogel | I44: Dinky Jets Famous JR | K44: 16.513
G45: 42 | H45: Tanna McCornack | I45: Oscar De La Bully | K45: 16.513
G46: 121 | H46: Mindy Holloway | I46: Tiny | K46: 16.533
D47: A | G47: 170 | H47: Charlene Plate | I47: Blue Moon Frost | K47: 16.54
D48: S | G48: 210 | H48: Jo Kirby | I48: Heavenly Joak | K48: 16.553
D49: S | G49: 195 | H49: Shelley Ward | I49: Time To Rodeo | K49: 16.557
G50: 93 | H50: Chelsea Young | I50: Tressy Oaks | K50: 16.564
D51: S | G51: 17 | H51: Jodi Stovall | I51: Miss French Drifter | K51: 16.568
A52: X | G52: 82 | H52: Maddie Dewberry | I52: Flights Quick Chick | K52: 16.569
D53: S | G53: 118 | H53: Debbie Richardson | I53: VF Going Big Time | K53: 16.58
A54: X | D54: S | G54: 15 | H54: Jolene Jones | I54: Peppys Streakof Fame | K54: 16.6
G55: 169 | H55: Josianne St-Cyr | I55: Lil Yellow Draw | K55: 16.611
D56: S | G56: 28 | H56: Simone Elmore | I56: Badger A Conchadrift | K56: 16.613
D57: S | G57: 52 | H57: Lee VOgel | I57: BB Boogyingfrenchman | K57: 16.619
G58: 119 | H58: Nisa Berry | I58: Featuring This Jet | K58: 16.621
E59: X | F59: X | G59: 99 | H59: Stormi Branch | I59: Demon | K59: 16.625
D60: A | G60: 104 | H60: Daisy Baird | I60: Elishas Arrow | K60: 16.632
G61: 20 | H61: Shannon Black | I61: TS Jets Blazin Lena | K61: 16.645
D62: A | G62: 189 | H62: Ashley Alligood | I62: RB Bullys Indian Outlaw | K62: 16.65
G63: 9 | H63: Misty Peek | I63: Amos | K63: 16.657
D64: S | G64: 152 | H64: Debbie Richardson | I64: Call Me Misty May | K64: 16.666
D65: S | G65: 41 | H65: Candace Pratt | I65: White Lick Willy | K65: 16.67
A66: X | G66: 96 | H66: Ginger Billingsley | I66: AllJokesAside | K66: 16.672
G67: 215 | H67: Michelle Sanislow | I67: Snoopy | K67: 16.674
G68: 178 | H68: Pam Smith | I68: Wicked | K68: 16.682
G69: 59 | H69: Ginger Billingsley | I69: Gitanna Drifter Lady | K69: 16.684
G70: 7 | H70: Dena Jaminet | I70: San Sue Harla | K70: 16.688
G71: 108 | H71: Gena Franklin | I71: SS StreakyMe | K71: 16.694
B72: X | D72: A | G72: 132 | H72: Tara Legg | I72: Sweet Timber Nickers | K72: 16.697
D73: A | G73: 129 | H73: Jennifer Cullen | K73: 16.724
G74: 65 | H74: Maggie Pytlik | I74: Rhett | K74: 16.726
G75: 183 | H75: Sydney Harris | I75: Get Down Playboy | K75: 16.745
G76: 46 | H76: Meredith Davis | K76: 16.746
G77: 2 | H77: Lacey Harmon | I77: Red Ryon Red Ryon | K77: 16.752
D78: A | G78: 166 | H78: Jacqueline Brockhurst | I78: Kid Star Dazzler | K78: 16.754
D79: S | G79: 171 | H79: Dawn Fryar | I79: Special Bid Of Frost | K79: 16.756
G80: 185 | H80: Nisa Berry | I80: Traffic Rocks | K80: 16.77
G81: 162 | H81: Lacy Billingsley | I81: Dirty Dizco Diane 37 | K81: 16.778
G82: 131 | H82: Josianne St-Cyr | I82: Runaway Lioness | K82: 16.779
G83: 111 | H83: Danielle Bussey | I83: Aching For Diamonds | K83: 16.781
D84: S | G84: 147 | H84: Debbie Bloxom | I84: Bad Fire Arising | K84: 16.791
G85: 100 | H85: Jane Fambro | I85: Willows French Girl | K85: 16.793
G86: 5 | H86: Darryl Kessler | I86: Irish Firewater | K86: 16.795
G87: 219 | H87: Kylena Hager | I87: Bar B Firewatersteel | K87: 16.795
D88: A | G88: 141 | H88: Noah Grimes | I88: California Clone | K88: 16.804
G89: 114 | H89: Lindsey Hoffman | I89: First Down Deception | K89: 16.829 | M89: 3D 1st | N89: 621.76
G90: 182 | H90: Gretchen Goedeken | I90: Pretty Bay Pony | K90: 16.83 | M90: 3D 2nd | N90: 514.56
G91: 127 | H91: Lisa Lucia | I91: Just Got Caught | K91: 16.842 | M91: 3D 3rd | N91: 407.36
G92: 148 | H92: Joan Morgan | I92: Starlight Remedy | K92: 16.867 | M92: 3D 4th | N92: 300.16
G93: 115 | H93: Courtney Ford | I93: Sally | K93: 16.869 | M93: 3D 5th | N93: 192.96
E94: X | F94: X | G94: 144 | H94: Charlesee Gallaway | I94: Big As I Am Rare | K94: 16.874 | M94: 3D 6th tie | N94: 54
G95: 91 | H95: Gretchen Goedeken | I95: Spots In My Dreams | K95: 16.874 | M95: 3D 6th tie | N95: 54
G96: 33 | H96: Lee Barron | I96: Xtra Splash N GO | K96: 16.889
G97: 143 | H97: Desiree Epps | I97: Oklahoma Josey | K97: 16.912
G98: 57 | H98: Jolene Jones | I98: Streakin Louie | K98: 16.922
G99: 211 | H99: Mandy Smith | I99: Mada Fame | K99: 16.949
G100: 180 | H100: Adrein McFarland | I100: A Streak Of Happy | K100: 16.976
D101: S | G101: 60 | H101: Johnell Ray | I101: Smooth Your Jets | K101: 16.985
G102: 36 | H102: Krista Whitley | I102: Frenchmans Splash | K102: 16.991
G103: 196 | H103: Davie King | I103: Luna | K103: 16.992
G104: 199 | H104: Amber Scholin | I104: Fuel Bird | K104: 17.018
E105: X | F105: X | G105: 51 | H105: Laurel Allred | I105: Quicks Blue Peppy | K105: 17.028
G106: 216 | H106: Mindy Holloway | I106: Lemon Drop | K106: 17.061
G107: 47 | H107: Darryl Kessler | I107: Shes So Slick | K107: 17.084
G108: 54 | H108: Sara Reed | I108: Rattle Me Two | K108: 17.099
G109: 29 | H109: Courtney Fuchs | I109: Uh Huh Im Streakin | K109: 17.107
G110: 146 | H110: Julie Mahon | I110: CD's Hickory Lights | K110: 17.11
G111: 159 | H111: Hollie Sirman | I111: Easter Bunny Special | K111: 17.112
G112: 67 | H112: Connie Randolf | I112: Hot Rod Kitty Catt | K112: 17.121
A113: X | D113: A | G113: 3 | H113: Blake Myers | I113: LuvOnDaRocks | K113: 17.128
D114: S | G114: 165 | H114: Karen Coskrey | I114: TS Dream Drifter | K114: 17.128
G115: 11 | H115: Michaela Robertson | I115: Shes Cartel Streaking | K115: 17.13
G116: 138 | H116: Jane Fambro | I116: Guys Merridoc Girl | K116: 17.144
D117: A | G117: 72 | H117: Janee' Ornelas | I117: Pistol | K117: 17.151
G118: 27 | H118: Lisa Jo Velliquette | I118: Namgis D 44 | K118: 17.157
G119: 174 | H119: Teneille Angland | I119: KN Famous Ever After | K119: 17.177
G120: 12 | H120: Kristy Scribner | K120: 17.2
D121: A | G121: 203 | H121: Timberly Erickosn | I121: Mines Fast | K121: 17.204
G122: 61 | H122: Piper Schaapveld | I122: Cool Little Kitty | K122: 17.213
G123: 101 | H123: Hannah Hertel | I123: Lenasdashtavictory | K123: 17.234
G124: 48 | H124: Lee ANn Guilkey | I124: Blazin Gator | K124: 17.256
G125: 109 | H125: Sydney Swatsell | I125: Abby | K125: 17.259
G126: 155 | H126: Jackie Whitcher | I126: Busy | K126: 17.268
G127: 103 | H127: JoAnna Brown | I127: Dr Nicks Prime Time | K127: 17.27
D128: S | G128: 63 | H128: Terry Vogel | I128: Imablueyedblondbitz | K128: 17.299
G129: 125 | H129: Sara Cazedessus | I129: Ride The Lightening | K129: 17.299
A130: X | G130: 22 | H130: Dawn Link | I130: Domintnator | K130: 17.312
G131: 107 | H131: Nikki Cain | I131: Compromised Perks | K131: 17.323 | M131: 4D 1st | N131: 466.32
D132: A | G132: 130 | H132: Tawnie Vander Lans | I132: TS Return N Hayday | K132: 17.326 | M132: 4D 2nd | N132: 385.92
D133: S | G133: 206 | H133: Tracie Schoenthal | I133: GunsNFirewater | K133: 17.338 | M133: 4D 3rd | N133: 305.52
D134: S | G134: 150 | H134: Charlene Glover | I134: Chevy Cinderella | K134: 17.381 | M134: 4D 4th | N134: 225.12
A135: X | C135: X | D135: A | G135: 14 | H135: Kylee Scribner | I135: Firewater Cartel | K135: 17.407 | M135: 4D 5th | N135: 144.72
G136: 140 | H136: Amber Ott | I136: Shez Texas Royalty | K136: 17.416 | M136: 4D 6th | N136: 80.4
G137: 123 | H137: Hadley Durfey | I137: One Smooth Kelly | K137: 17.431
G138: 49 | H138: Whitney Fisher | I138: BB French N Easy | K138: 17.457
D139: A | G139: 157 | H139: Janee' Ornelas | I139: Frosty | K139: 17.463
D140: A | G140: 128 | H140: Crystal Allred | I140: Not A Berry But A Jewel | K140: 17.484
G141: 217 | H141: Geneva Robertson | I141: Wynn | K141: 17.485
F142: X | G142: 16 | H142: Taegan Sanders | I142: Whizzer Guy | K142: 17.494
G143: 74 | H143: Karen Franklin | I143: SS SecretSix | K143: 17.501
D144: S | G144: 133 | H144: Debra Cooper | I144: Hugginanativepepto | K144: 17.525
G145: 218 | H145: Marlyn Bland | I145: TK Lady Gotta Gun | K145: 17.533
D146: A | G146: 187 | H146: Ashley Moore | I146: Mucho Fast Dave | K146: 17.565
G147: 79 | H147: Danielle Bussey | I147: JR Playgirl Bar | K147: 17.571
G148: 222 | H148: Nisa Berry | I148: Just Stylin | K148: 17.586
G149: 45 | H149: Sydney Swatsell | I149: Mack Daddy | K149: 17.631
G150: 149 | H150: Julia Pogue | I150: B W Yardboss | K150: 17.636
G151: 94 | H151: Colt Tew | I151: Annie Guys Easy Jet | K151: 17.662
G152: 124 | H152: Angie Mitchell | I152: Bam Bam | K152: 17.758
G153: 184 | H153: Cindy Harris | I153: Black Jet Peppy | K153: 17.761
D154: S | G154: 25 | H154: Terry Vogel | I154: Super Frosted Bug | K154: 17.768
G155: 120 | H155: Abery Knight-Potts | I155: Shese A Gold Coin | K155: 17.808
D156: S | G156: 23 | H156: Lisa Corey | I156: Beda Dream | K156: 17.826 | M156: 5D 1st | N156: 310.88
C157: X | G157: 76 | H157: Mike Robertson | I157: Lions And Ladybugs | K157: 17.848 | M157: 5D 2nd | N157: 257.28
G158: 209 | H158: Karen Richardson | I158: Frenchmans Ruby Dash | K158: 17.876 | M158: 5D 3rd | N158: 203.68
G159: 77 | H159: Sydney Swatsell | I159: Gus | K159: 17.922 | M159: 5D 4th | N159: 150.08
E160: X | F160: X | G160: 90 | H160: Mikayla Cearley | I160: TF PeppySmokenSavage | K160: 17.941 | M160: 5D 5th | N160: 96.48
D161: A | G161: 163 | H161: Elyse Busby | I161: EB Ripple Effect | K161: 17.953 | M161: 5D 6th | N161: 53.6
G162: 70 | H162: Karen Gaida | I162: Ciclone Streak | K162: 17.974
D163: A | G163: 105 | H163: Janee' Ornelas | I163: Babe | K163: 17.99
G164: 18 | H164: Haley Alvarez | I164: Don Quixote | K164: 18.018
D165: A | G165: 95 | H165: Kinsey Chandler | I165: Favorite Misstake | K165: 18.03
D166: A | G166: 62 | H166: Tiffany Durham | I166: Dashin Luke Perry | K166: 18.041
G167: 207 | H167: Hollie Sirman | I167: Quick Boogie | K167: 18.062
G168: 139 | H168: Kandace Bussell | I168: Circle Bar Rare Bugs | K168: 18.133
G169: 192 | H169: Ann White | I169: Hank | K169: 18.135
G170: 50 | H170: Dena Jaminet | I170: My New Tattoo | K170: 18.148
F171: X | G171: 10 | H171: Cooper Peek | I171: Dolly | K171: 18.175
G172: 194 | H172: Kaytie Zuidema | I172: Misty K Quioxte | K172: 18.178
D173: A | G173: 19 | H173: Jesse Budd | I173: Flicker Nic | K173: 18.359
G174: 126 | H174: Martina Graner | I174: Lil Holland Chick | K174: 18.421
G175: 92 | H175: Jessica Dunbar | I175: Pumba | K175: 18.426
G176: 212 | H176: Adrein McFarland | I176: Pop Sugar | K176: 18.532
F177: X | G177: 32 | H177: Jaelie Jaminet | I177: Bella | K177: 18.56
G178: 177 | H178: Aerial Eggers | I178: SN Apollo | K178: 18.629
F179: X | G179: 6 | H179: Haley King | I179: Vanity | K179: 18.726
D180: S | G180: 112 | H180: Johnell Ray | I180: Peppy San Smooth | K180: 18.854
D181: S | G181: 4 | H181: Teresa Sisk | I181: Chans Rocky Leo | K181: 19.076
G182: 225 | H182: Callie Cullenberg | K182: 20.029
E183: X | F183: X | G183: 43 | H183: Caydence Grnwalt | I183: Heza Wild Thing | K183: 20.396
D184: A | G184: 191 | H184: Charlene Plate | I184: TQ Go Dash for Cash | K184: 20.399
G185: 69 | H185: Jamey Odell | I185: THC Frenchman 513 | K185: 22.488
D186: A | G186: 186 | H186: Janee' Ornelas | I186: Cartel | K186: 29.707
G187: 87 | H187: Rebba Wright | I187: Twosteppin Firewater | K187: broken
A188: X | G188: 136 | H188: Jessica Mullens | I188: Hakunamatadi | K188: N/T | L188: 17.614
G189: 106 | H189: Roberta Chott | I189: Guys Hot Frost | K189: N/T | L189: 16.62
G190: 137 | H190: Kyle Etchart | I190: Panfis Corona | K190: N/T | L190: 16.947
G191: 142 | H191: Denny Ralls | I191: SV Southern Comfort | K191: N/T | L191: 16.483
B192: X | G192: 38 | H192: Nisa Berry | I192: A Kings Famous Fling | K192: N/T16.269
G193: 21 | H193: Courtney Worthington | I193: Rey Of Fame | K193: N/T16.275
G194: 37 | H194: Jamey Odell | I194: THC Dat Frenchman | K194: N/T16.382
G195: 13 | H195: Sydney Swatsell | I195: Smalls | K195: N/T16.582
D196: A | G196: 34 | H196: Bianca Dos Santos | I196: One Famous Streaker | K196: N/T16.702
G197: 39 | H197: Kelly Lankford | I197: Kissinmydate | K197: N/T16.769
G198: 1 | H198: Hevenli Scribner | I198: Daffy | K198: N/T17.631
B199: X | G199: 167 | H199: Jana Stripe | I199: Tres Socks | K199: nt
E200: X | F200: X | G200: 204 | H200: Brooke Meier | I200: SOcks | K200: nt
D201: A | G201: 73 | H201: Chani Graves | I201: Six Dashes Of Perk | K201: nt
... 336 more rows

Sheet Senior
A1: Futurity | B1: Der | C1: Age Inct. | D1: BBR | E1: Draw | F1: Rider Name | G1: Horse Name | H1: Pen | I1: Time | J1: Final Time | K1: Placing | L1: Money Earned
E2: 1 | F2: Lisa Wernli | G2: Flashes Fine Effort | I2: 16.061 | K2: 1D 1st | L2: 122
E3: 2 | F3: Jenny Zant | G3: Raise Me Ta Fame | I3: 16.204 | K3: 1D 2nd | L3: 81
E4: 3 | F4: Amy Swan | G4: Boons Prescription | I4: 16.392
E5: 4 | F5: Lynn Saunders | G5: Chumley | I5: 16.397
E6: 5 | F6: Lisa Wernli | G6: Babe On The Run | I6: 16.44
E7: 6 | F7: Terry Vogel | G7: Dinky Jets Famous JR | I7: 16.513
E8: 7 | F8: Jo Kirby | G8: Heavenly Joak | I8: 16.553
E9: 8 | F9: Shelley Ward | G9: Time To Rodeo | I9: 16.557
E10: 9 | F10: Jodi Stovall | G10: Miss French Drifter | I10: 16.568 | K10: 2D 1st | L10: 104
E11: 10 | F11: Debbie Richardson | G11: VF Going Big Time | I11: 16.58 | K11: 2D 2nd | L11: 70
E12: 11 | F12: Jolene Jones | G12: Peppys Streakof Fame | I12: 16.6
E13: 12 | F13: Simone Elmore | G13: Badger A Conchadrift | I13: 16.613
E14: 13 | F14: Lee VOgel | G14: BB Boogyingfrenchman | I14: 16.619
E15: 14 | F15: Debbie Richardson | G15: Call Me Misty May | I15: 16.666
E16: 15 | F16: Candace Pratt | G16: White Lick Willy | I16: 16.67
E17: 16 | F17: Dawn Fryar | G17: Special Bid Of Frost | I17: 16.756
E18: 17 | F18: Debbie Bloxom | G18: Bad Fire Arising | I18: 16.791
E19: 18 | F19: Johnell Ray | G19: Smooth Your Jets | I19: 16.985
E20: 19 | F20: Karen Coskrey | G20: TS Dream Drifter | I20: 17.128 | K20: 3D 1st | L20: 70
E21: 20 | F21: Terry Vogel | G21: Imablueyedblondbitz | I21: 17.299 | K21: 3D 2nd | L21: 46
E22: 21 | F22: Tracie Schoenthal | G22: GunsNFirewater | I22: 17.338
E23: 22 | F23: Charlene Glover | G23: Chevy Cinderella | I23: 17.381
E24: 23 | F24: Debra Cooper | G24: Hugginanativepepto | I24: 17.525
E25: 24 | F25: Terry Vogel | G25: Super Frosted Bug | I25: 17.768 | K25: 4D 1st | L25: 52
E26: 25 | F26: Lisa Corey | G26: Beda Dream | I26: 17.826 | K26: 4D 2nd | L26: 35
E27: 26 | F27: Johnell Ray | G27: Peppy San Smooth | I27: 18.854
E28: 27 | F28: Teresa Sisk | G28: Chans Rocky Leo | I28: 19.076
E29: 28 | F29: Marlyn Bland | G29: Nicks Super Chance | I29: nt
E30: 29 | F30: Doreen Rue | G30: Imablondeperk | I30: nt16.719
E31: 30
E32: 31
E33: 32
E34: 33
E35: 34
E36: 35
E37: 36
E38: 37
E39: 38
E40: 39
E41: 40
E42: 41
E43: 42
E44: 43
E45: 44
E46: 45
E47: 46
E48: 47
E49: 48
E50: 49
E51: 50
E52: 51
E53: 52
E54: 53
E55: 54
E56: 55
E57: 56
E58: 57
E59: 58
E60: 59
E61: 60
E62: 61
E63: 62
E64: 63
E65: 64
E66: 65
E67: 66
E68: 67
E69: 68
E70: 69
E71: 70
E72: 71
E73: 72
E74: 73
E75: 74
E76: 75
E77: 76
E78: 77
E79: 78
E80: 79
E81: 80
E82: 81
E83: 82
E84: 83
E85: 84
E86: 85
E87: 86
E88: 87
E89: 88
E90: 89
E91: 90
E92: 91
E93: 92
E94: 93
E95: 94
E96: 95
E97: 96
E98: 97
E99: 98
E100: 99
E101: 100
E102: 101
E103: 102
E104: 103
E105: 104
E106: 105
E107: 106
E108: 107
E109: 108
E110: 109
E111: 110
E112: 111
E113: 112
E114: 113
E115: 114
E116: 115
E117: 116
E118: 117
E119: 118
E120: 119
E121: 120
E122: 121
E123: 122
E124: 123
E125: 124
E126: 125
E127: 126
E128: 127
E129: 128
E130: 129 | J130: =IF(OR(H130=5,H130=10, H130=15, H130="BP",H130="SCR"),"NT",I130) -> 0
E131: 130 | J131: =IF(OR(H131=5,H131=10, H131=15, H131="BP",H131="SCR"),"NT",I131) -> 0
E132: 131 | J132: 0
E133: 132 | J133: 0
E134: 133 | J134: 0
E135: 134 | J135: 0
E136: 135 | J136: 0
E137: 136 | J137: 0
E138: 137 | J138: 0
E139: 138 | J139: 0
E140: 139 | J140: 0
E141: 140 | J141: 0
E142: 141 | J142: 0
E143: 142 | J143: 0
E144: 143 | J144: 0
E145: 144 | J145: 0
E146: 145 | J146: 0
E147: 146 | J147: 0
E148: 147 | J148: 0
E149: 148 | J149: 0
E150: 149 | J150: 0
E151: 150 | J151: 0
E152: 151 | J152: 0
E153: 152 | J153: 0
E154: 153 | J154: 0
E155: 154 | J155: 0
E156: 155 | J156: 0
E157: 156 | J157: 0
E158: 157 | J158: 0
E159: 158 | J159: 0
E160: 159 | J160: 0
E161: 160 | J161: 0
E162: 161 | J162: 0
E163: 162 | J163: 0
E164: 163 | J164: 0
E165: 164 | J165: 0
E166: 165 | J166: 0
E167: 166 | J167: 0
E168: 167 | J168: 0
E169: 168 | J169: 0
E170: 169 | J170: 0
E171: 170 | J171: 0
E172: 171 | J172: 0
E173: 172 | J173: 0
E174: 173 | J174: 0
E175: 174 | J175: 0
E176: 175 | J176: 0
E177: 176 | J177: 0
E178: 177 | J178: 0
E179: 178 | J179: 0
E180: 179 | J180: 0
E181: 180 | J181: 0
E182: 181 | J182: 0
E183: 182 | J183: 0
E184: 183 | J184: 0
E185: 184 | J185: 0
E186: 185 | J186: 0
E187: 186 | J187: 0
E188: 187 | J188: 0
E189: 188 | J189: 0
E190: 189 | J190: 0
E191: 190 | J191: 0
E192: 191 | J192: 0
E193: 192 | J193: 0
E194: 193 | J194: 0
E195: 194 | J195: =IF(OR(H195=5,H195=10, H195=15, H195="BP",H195="SCR"),"NT",I195) -> 0
E196: 195 | J196: 0
E197: 196 | J197: 0
E198: 197 | J198: 0
E199: 198 | J199: 0
E200: 199 | J200: 0
... 101 more rows

Sheet Adult
A1: Futurity | B1: Der | C1: Age Inct. | D1: BBR | E1: Draw | F1: Rider Name | G1: Horse Name | H1: Pen | I1: Time | J1: Final Time | K1: Placing | L1: Money Earned
E2: 1 | F2: Kinsey Chandler | G2: Judge Knott | I2: 15.816 | K2: 1D 1st | L2: 134.4
E3: 2 | F3: Stephanie Snazuk | G3: SR Ima Royal Streaker | I3: 15.852 | K3: 1D 2nd | L3: 89.6
E4: 3 | F4: Cassidy Rabb | G4: VF Temptations | I4: 16.191
E5: 4 | F5: Bianca Dos Santos | G5: Dashin Quickly | I5: 16.324 | K5: 2D 1st | L5: 115.2
E6: 5 | F6: Kappie Bryant | G6: Party Rocker | I6: 16.329 | K6: 2D 2nd | L6: 76.8
E7: 6 | F7: Charlene Plate | G7: Blue Moon Frost | I7: 16.54
E8: 7 | F8: Daisy Baird | G8: Elishas Arrow | I8: 16.632
E9: 8 | F9: Ashley Alligood | G9: RB Bullys Indian Outlaw | I9: 16.65
E10: 9 | F10: Tara Legg | G10: Sweet Timber Nickers | I10: 16.697
E11: 10 | F11: Jennifer Cullen | I11: 16.724
E12: 11 | F12: Jacqueline Brockhurst | G12: Kid Star Dazzler | I12: 16.754
E13: 12 | F13: Noah Grimes | G13: California Clone | I13: 16.804
E14: 13 | F14: Blake Myers | G14: LuvOnDaRocks | I14: 17.128 | K14: 3D 1st | L14: 77
E15: 14 | F15: Janee' Ornelas | G15: Pistol | I15: 17.151 | K15: 3D 2nd | L15: 51
E16: 15 | F16: Timberly Erickosn | G16: Mines Fast | I16: 17.204
E17: 16 | F17: Tawnie Vander Lans | G17: TS Return N Hayday | I17: 17.326 | K17: 4D 1st | L17: 58
E18: 17 | F18: Kylee Scribner | G18: Firewater Cartel | I18: 17.407 | K18: 4D 2nd | L18: 38
E19: 18 | F19: Janee' Ornelas | G19: Frosty | I19: 17.463
E20: 19 | F20: Crystal Allred | G20: Not A Berry But A Jewel | I20: 17.484
E21: 20 | F21: Ashley Moore | G21: Mucho Fast Dave | I21: 17.565
E22: 21 | F22: Elyse Busby | G22: EB Ripple Effect | I22: 17.953
E23: 22 | F23: Janee' Ornelas | G23: Babe | I23: 17.99
E24: 23 | F24: Kinsey Chandler | G24: Favorite Misstake | I24: 18.03
E25: 24 | F25: Tiffany Durham | G25: Dashin Luke Perry | I25: 18.041
E26: 25 | F26: Jesse Budd | G26: Flicker Nic | I26: 18.359
E27: 26 | F27: Charlene Plate | G27: TQ Go Dash for Cash | I27: 20.399
E28: 27 | F28: Janee' Ornelas | G28: Cartel | I28: 29.707
E29: 28 | F29: Bianca Dos Santos | G29: One Famous Streaker | I29: N/T16.702
E30: 29 | F30: Chani Graves | G30: Six Dashes Of Perk | I30: nt
E31: 30 | F31: Kendra Moore | G31: Spiderman | I31: nt16.124
E32: 31 | F32: Caitlyn Schievink (ski-vink) | G32: KN Mojito Over Rocks | I32: nt16.911
E33: 32 | F33: Crystal Allred | G33: Lovemas Ghost | I33: nt17.588
E34: 33
E35: 34
E36: 35
E37: 36
E38: 37
E39: 38
E40: 39
E41: 40
E42: 41
E43: 42
E44: 43
E45: 44
E46: 45
E47: 46
E48: 47
E49: 48
E50: 49
E51: 50
E52: 51
E53: 52
E54: 53
E55: 54
E56: 55
E57: 56
E58: 57
E59: 58
E60: 59
E61: 60
E62: 61
E63: 62
E64: 63
E65: 64
E66: 65
E67: 66
E68: 67
E69: 68
E70: 69
E71: 70
E72: 71
E73: 72
E74: 73
E75: 74
E76: 75
E77: 76
E78: 77
E79: 78
E80: 79
E81: 80 | J81: =IF(OR(H81=5,H81=10, H81=15, H81="BP",H81="SCR"),"NT",I81) -> 0
E82: 81 | J82: 0
E83: 82 | J83: 0
E84: 83 | J84: 0
E85: 84 | J85: 0
E86: 85 | J86: 0
E87: 86 | J87: 0
E88: 87 | J88: 0
E89: 88 | J89: 0
E90: 89 | J90: 0
E91: 90 | J91: 0
E92: 91 | J92: 0
E93: 92 | J93: 0
E94: 93 | J94: 0
E95: 94 | J95: 0
E96: 95 | J96: 0
E97: 96 | J97: 0
E98: 97 | J98: 0
E99: 98 | J99: 0
E100: 99 | J100: 0
E101: 100 | J101: 0
E102: 101 | J102: 0
E103: 102 | J103: 0
E104: 103 | J104: 0
E105: 104 | J105: 0
E106: 105 | J106: 0
E107: 106 | J107: 0
E108: 107 | J108: 0
E109: 108 | J109: 0
E110: 109 | J110: 0
E111: 110 | J111: 0
E112: 111 | J112: 0
E113: 112 | J113: 0
E114: 113 | J114: 0
E115: 114 | J115: 0
E116: 115 | J116: 0
E117: 116 | J117: 0
E118: 117 | J118: 0
E119: 118 | J119: 0
E120: 119 | J120: 0
E121: 120 | J121: 0
E122: 121 | J122: 0
E123: 122 | J123: 0
E124: 123 | J124: 0
E125: 124 | J125: 0
E126: 125 | J126: 0
E127: 126 | J127: 0
E128: 127 | J128: 0
E129: 128 | J129: 0
E130: 129 | J130: 0
E131: 130 | J131: =IF(OR(H131=5,H131=10, H131=15, H131="BP",H131="SCR"),"NT",I131) -> 0
E132: 131 | J132: 0
E133: 132 | J133: 0
E134: 133 | J134: 0
E135: 134 | J135: 0
E136: 135 | J136: 0
E137: 136 | J137: 0
E138: 137 | J138: 0
E139: 138 | J139: 0
E140: 139 | J140: 0
E141: 140 | J141: 0
E142: 141 | J142: 0
E143: 142 | J143: 0
E144: 143 | J144: 0
E145: 144 | J145: 0
E146: 145 | J146: 0
E147: 146 | J147: 0
E148: 147 | J148: 0
E149: 148 | J149: 0
E150: 149 | J150: 0
E151: 150 | J151: 0
E152: 151 | J152: 0
E153: 152 | J153: 0
E154: 153 | J154: 0
E155: 154 | J155: 0
E156: 155 | J156: 0
E157: 156 | J157: 0
E158: 157 | J158: 0
E159: 158 | J159: 0
E160: 159 | J160: 0
E161: 160 | J161: 0
E162: 161 | J162: 0
E163: 162 | J163: 0
E164: 163 | J164: 0
E165: 164 | J165: 0
E166: 165 | J166: 0
E167: 166 | J167: 0
E168: 167 | J168: 0
E169: 168 | J169: 0
E170: 169 | J170: 0
E171: 170 | J171: 0
E172: 171 | J172: 0
E173: 172 | J173: 0
E174: 173 | J174: 0
E175: 174 | J175: 0
E176: 175 | J176: 0
E177: 176 | J177: 0
E178: 177 | J178: 0
E179: 178 | J179: 0
E180: 179 | J180: 0
E181: 180 | J181: 0
E182: 181 | J182: 0
E183: 182 | J183: 0
E184: 183 | J184: 0
E185: 184 | J185: 0
E186: 185 | J186: 0
E187: 186 | J187: 0
E188: 187 | J188: 0
E189: 188 | J189: 0
E190: 189 | J190: 0
E191: 190 | J191: 0
E192: 191 | J192: 0
E193: 192 | J193: 0
E194: 193 | J194: 0
E195: 194 | J195: =IF(OR(H195=5,H195=10, H195=15, H195="BP",H195="SCR"),"NT",I195) -> 0
E196: 195 | J196: 0
E197: 196 | J197: 0
E198: 197 | J198: 0
E199: 198 | J199: 0
E200: 199 | J200: 0
... 101 more rows

Sheet Youth
A1: Futurity | B1: Der | C1: Age Inct. | D1: BBR | E1: Draw | F1: Rider Name | G1: Horse Name | H1: Pen | I1: Time | J1: Placing | K1: Money Earned
E2: 1 | F2: Stormi Branch | G2: Demon | I2: 16.625 | J2: 1D 1st | K2: 98
E3: 2 | F3: Charlesee Gallaway | G3: Big As I Am Rare | I3: 16.874
E4: 3 | F4: Laurel Allred | G4: Quicks Blue Peppy | I4: 17.028
E5: 4 | F5: Taegan Sanders | G5: Whizzer Guy | I5: 17.494 | J5: 2D 1st | K5: 84
E6: 5 | F6: Mikayla Cearley | G6: TF PeppySmokenSavage | I6: 17.941 | J6: 2D 1st | K6: 56
E7: 6 | F7: Cooper Peek | G7: Dolly | I7: 18.175 | J7: 4D 1st | K7: 42
E8: 7 | F8: Jaelie Jaminet | G8: Bella | I8: 18.56
E9: 8 | F9: Haley King | G9: Vanity | I9: 18.726
E10: 9 | F10: Caydence Grnwalt | G10: Heza Wild Thing | I10: 20.396
E11: 10 | F11: Brooke Meier | G11: SOcks | I11: nt
E12: 11
E13: 12
E14: 13
E15: 14
E16: 15
E17: 16
E18: 17
E19: 18
E20: 19
E21: 20
E22: 21
E23: 22
E24: 23
E25: 24
E26: 25
E27: 26
E28: 27
E29: 28
E30: 29
E31: 30
E32: 31
E33: 32
E34: 33
E35: 34
E36: 35
E37: 36
E38: 37
E39: 38
E40: 39
E41: 40
E42: 41
E43: 42
E44: 43
E45: 44
E46: 45
E47: 46
E48: 47
E49: 48
E50: 49
E51: 50
E52: 51
E53: 52
E54: 53
E55: 54
E56: 55
E57: 56
E58: 57
E59: 58
E60: 59
E61: 60
E62: 61
E63: 62
E64: 63
E65: 64
E66: 65
E67: 66
E68: 67
E69: 68
E70: 69
E71: 70
E72: 71
E73: 72
E74: 73
E75: 74
E76: 75
E77: 76
E78: 77
E79: 78
E80: 79
E81: 80
E82: 81
E83: 82
E84: 83
E85: 84
E86: 85
E87: 86
E88: 87
E89: 88
E90: 89
E91: 90
E92: 91
E93: 92
E94: 93
E95: 94
E96: 95
E97: 96
E98: 97
E99: 98
E100: 99
E101: 100
E102: 101
E103: 102
E104: 103
E105: 104
E106: 105
E107: 106
E108: 107
E109: 108
E110: 109
E111: 110
E112: 111
E113: 112
E114: 113
E115: 114
E116: 115
E117: 116
E118: 117
E119: 118
E120: 119
E121: 120
E122: 121
E123: 122
E124: 123
E125: 124
E126: 125
E127: 126
E128: 127
E129: 128
E130: 129
E131: 130
E132: 131
E133: 132
E134: 133
E135: 134
E136: 135
E137: 136
E138: 137
E139: 138
E140: 139
E141: 140
E142: 141
E143: 142
E144: 143
E145: 144
E146: 145
E147: 146
E148: 147
E149: 148
E150: 149
E151: 150
E152: 151
E153: 152
E154: 153
E155: 154
E156: 155
E157: 156
E158: 157
E159: 158
E160: 159
E161: 160
E162: 161
E163: 162
E164: 163
E165: 164
E166: 165
E167: 166
E168: 167
E169: 168
E170: 169
E171: 170
E172: 171
E173: 172
E174: 173
E175: 174
E176: 175
E177: 176
E178: 177
E179: 178
E180: 179
E181: 180
E182: 181
E183: 182
E184: 183
E185: 184
E186: 185
E187: 186
E188: 187
E189: 188
E190: 189
E191: 190
E192: 191
E193: 192
E194: 193
E195: 194
E196: 195
E197: 196
E198: 197
E199: 198
E200: 199
... 101 more rows

Sheet Derby
A1: Futurity | B1: Der | C1: Age Inct. | D1: BBR | E1: Draw | F1: Rider Name | G1: Horse Name | H1: c/o | I1: Time | J1: Final Time | K1: Placing | L1: Money Earned
E2: 1 | F2: Amanda Clark | G2: Dancin For Fame | I2: 16.09 | K2: 1st | L2: 200
E3: 2 | F3: Jana Stripe | G3: Kc High Pick | I3: 16.482
E4: 3 | F4: Tara Legg | G4: Sweet Timber Nickers | I4: 16.697
E5: 4 | F5: Nisa Berry | G5: A Kings Famous Fling | I5: N/T16.269
E6: 5 | F6: Jana Stripe | G6: Tres Socks | I6: nt
E7: 6
E8: 7
E9: 8
E10: 9
E11: 10
E12: 11
E13: 13
E14: 14
E15: 15
E16: 16
E17: 17
E18: 18
E19: 19
E20: 20
E21: 21
E22: 22
E23: 23
E24: 24
E25: 25
E26: 26
E27: 27
E28: 28 | J28: =IF(OR(H28=5,H28=10, H28=15, H28="BP",H28="SCR"),"NT",I28) -> 0
E29: 29 | J29: 0
E30: 30 | J30: 0
E31: 31 | J31: 0
E32: 32 | J32: 0
E33: 33 | J33: 0
E34: 34 | J34: 0
E35: 35 | J35: 0
E36: 36 | J36: 0
E37: 37 | J37: 0
E38: 38 | J38: 0
E39: 39 | J39: 0
E40: 40 | J40: 0
E41: 41 | J41: 0
E42: 42 | J42: 0
E43: 43 | J43: 0
E44: 44 | J44: 0
E45: 45 | J45: 0
E46: 46 | J46: 0
E47: 47 | J47: 0
E48: 48 | J48: 0
E49: 49 | J49: 0
E50: 50 | J50: 0
E51: 51 | J51: 0
E52: 52 | J52: 0
E53: 53 | J53: 0
E54: 54 | J54: 0
E55: 55 | J55: 0
E56: 56 | J56: 0
E57: 57 | J57: 0
E58: 58 | J58: 0
E59: 59 | J59: 0
E60: 60 | J60: 0
E61: 61 | J61: 0
E62: 62 | J62: 0
E63: 63 | J63: 0
E64: 64 | J64: 0
E65: 65 | J65: 0
E66: 66 | J66: 0
E67: 67 | J67: 0
E68: 68 | J68: 0
E69: 69 | J69: 0
E70: 70 | J70: 0
E71: 71 | J71: 0
E72: 72 | J72: 0
E73: 73 | J73: 0
E74: 74 | J74: 0
E75: 75 | J75: 0
E76: 76 | J76: 0
E77: 77 | J77: 0
E78: 78 | J78: 0
E79: 79 | J79: 0
E80: 80 | J80: 0
E81: 81 | J81: =IF(OR(H81=5,H81=10, H81=15, H81="BP",H81="SCR"),"NT",I81) -> 0
E82: 82 | J82: 0
E83: 83 | J83: 0
E84: 84 | J84: 0
E85: 85 | J85: 0
E86: 86 | J86: 0
E87: 87 | J87: 0
E88: 88 | J88: 0
E89: 89 | J89: 0
E90: 90 | J90: 0
E91: 91 | J91: 0
E92: 92 | J92: 0
E93: 93 | J93: 0
E94: 94 | J94: 0
E95: 95 | J95: 0
E96: 96 | J96: 0
E97: 97 | J97: 0
E98: 98 | J98: 0
E99: 99 | J99: 0
E100: 100 | J100: 0
E101: 101 | J101: 0
E102: 102 | J102: 0
E103: 103 | J103: 0
E104: 104 | J104: 0
E105: 105 | J105: 0
E106: 106 | J106: 0
E107: 107 | J107: 0
E108: 108 | J108: 0
E109: 109 | J109: 0
E110: 110 | J110: 0
E111: 111 | J111: 0
E112: 112 | J112: 0
E113: 113 | J113: 0
E114: 114 | J114: 0
E115: 115 | J115: 0
E116: 116 | J116: 0
E117: 117 | J117: 0
E118: 118 | J118: 0
E119: 119 | J119: 0
E120: 120 | J120: 0
E121: 121 | J121: 0
E122: 122 | J122: 0
E123: 123 | J123: 0
E124: 124 | J124: 0
E125: 125 | J125: 0
E126: 126 | J126: 0
E127: 127 | J127: 0
E128: 128 | J128: 0
E129: 129 | J129: 0
E130: 130 | J130: 0
E131: 131 | J131: 0
E132: 132 | J132: 0
E133: 133 | J133: 0
E134: 134 | J134: 0
E135: 135 | J135: 0
E136: 136 | J136: 0
E137: 137 | J137: 0
E138: 138 | J138: 0
E139: 139 | J139: 0
E140: 140 | J140: 0
E141: 141 | J141: 0
E142: 142 | J142: 0
E143: 143 | J143: 0
E144: 144 | J144: 0
E145: 145 | J145: =IF(OR(H145=5,H145=10, H145=15, H145="BP",H145="SCR"),"NT",I145) -> 0
E146: 146 | J146: 0
E147: 147 | J147: 0
E148: 148 | J148: 0
E149: 149 | J149: 0
E150: 150 | J150: 0
E151: 151 | J151: 0
E152: 152 | J152: 0
E153: 153 | J153: 0
E154: 154 | J154: 0
E155: 155 | J155: 0
E156: 156 | J156: 0
E157: 157 | J157: 0
E158: 158 | J158: 0
E159: 159 | J159: 0
E160: 160 | J160: 0
E161: 161 | J161: 0
E162: 162 | J162: 0
E163: 163 | J163: 0
E164: 164 | J164: 0
E165: 165 | J165: 0
E166: 166 | J166: 0
E167: 167 | J167: 0
E168: 168 | J168: 0
E169: 169 | J169: 0
E170: 170 | J170: 0
E171: 171 | J171: 0
E172: 172 | J172: 0
E173: 173 | J173: 0
E174: 174 | J174: 0
E175: 175 | J175: 0
E176: 176 | J176: 0
E177: 177 | J177: 0
E178: 178 | J178: 0
E179: 179 | J179: 0
E180: 180 | J180: 0
E181: 181 | J181: 0
E182: 182 | J182: 0
E183: 183 | J183: 0
E184: 184 | J184: 0
E185: 185 | J185: 0
E186: 186 | J186: 0
E187: 187 | J187: 0
E188: 188 | J188: 0
E189: 189 | J189: 0
E190: 190 | J190: 0
E191: 191 | J191: 0
E192: 192 | J192: 0
E193: 193 | J193: 0
E194: 194 | J194: 0
E195: 195 | J195: 0
E196: 196 | J196: 0
E197: 197 | J197: 0
E198: 198 | J198: 0
E199: 199 | J199: 0
E200: 200 | J200: 0
... 100 more rows

Sheet Highstakes
A1: Futurity | B1: Der | C1: Age Inct. | D1: BBR | E1: Draw | F1: Rider Name | G1: Horse Name | H1: c/o | I1: Time | J1: Final Time | K1: Placing | L1: Money Earned
E2: 1 | F2: Mike Robertson | G2: Simba The Texas Jet | I2: 16.193 | K2: 1st | L2: 240
E3: 2 | F3: Kylee Scribner | G3: Firewater Cartel | I3: 17.407
E4: 3 | F4: Mike Robertson | G4: Lions And Ladybugs | I4: 17.848
E5: 4
E6: 5
E7: 6
E8: 7
E9: 8
E10: 9
E11: 10
E12: 11
E13: 12
E14: 13
E15: 14
E16: 15
E17: 16
E18: 17
E19: 18
E20: 19
E21: 20
E22: 21
E23: 22
E24: 23
E25: 24
E26: 25
E27: 26
E28: 27
E29: 28
E30: 29
E31: 30
E32: 31
E33: 32
E34: 33
E35: 34
E36: 35
E37: 36
E38: 37
E39: 38
E40: 39 | J40: =IF(OR(H40=5,H40=10, H40=15, H40="BP",H40="SCR"),"NT",I40) -> 0
E41: 40 | J41: 0
E42: 41 | J42: 0
E43: 42 | J43: 0
E44: 43 | J44: 0
E45: 44 | J45: 0
E46: 45 | J46: 0
E47: 46 | J47: 0
E48: 47 | J48: 0
E49: 48 | J49: 0
E50: 49 | J50: 0
E51: 50 | J51: 0
E52: 51 | J52: 0
E53: 52 | J53: 0
E54: 53 | J54: 0
E55: 54 | J55: 0
E56: 55 | J56: 0
E57: 56 | J57: 0
E58: 57 | J58: 0
E59: 58 | J59: 0
E60: 59 | J60: 0
E61: 60 | J61: 0
E62: 61 | J62: 0
E63: 62 | J63: 0
E64: 63 | J64: 0
E65: 64 | J65: 0
E66: 65 | J66: 0
E67: 66 | J67: 0
E68: 67 | J68: 0
E69: 68 | J69: 0
E70: 69 | J70: 0
E71: 70 | J71: 0
E72: 71 | J72: 0
E73: 72 | J73: 0
E74: 73 | J74: 0
E75: 74 | J75: 0
E76: 75 | J76: 0
E77: 76 | J77: 0
E78: 77 | J78: 0
E79: 78 | J79: 0
E80: 79 | J80: 0
E81: 80 | J81: 0
E82: 81 | J82: 0
E83: 82 | J83: 0
E84: 83 | J84: 0
E85: 84 | J85: 0
E86: 85 | J86: 0
E87: 86 | J87: 0
E88: 87 | J88: 0
E89: 88 | J89: 0
E90: 89 | J90: 0
E91: 90 | J91: 0
E92: 91 | J92: 0
E93: 92 | J93: 0
E94: 93 | J94: 0
E95: 94 | J95: 0
E96: 95 | J96: 0
E97: 96 | J97: 0
E98: 97 | J98: 0
E99: 98 | J99: 0
E100: 99 | J100: 0
E101: 100 | J101: 0
E102: 101 | J102: 0
E103: 102 | J103: 0
E104: 103 | J104: =IF(OR(H104=5,H104=10, H104=15, H104="BP",H104="SCR"),"NT",I104) -> 0
E105: 104 | J105: 0
E106: 105 | J106: 0
E107: 106 | J107: 0
E108: 107 | J108: 0
E109: 108 | J109: 0
E110: 109 | J110: 0
E111: 110 | J111: 0
E112: 111 | J112: 0
E113: 112 | J113: 0
E114: 113 | J114: 0
E115: 114 | J115: 0
E116: 115 | J116: 0
E117: 116 | J117: 0
E118: 117 | J118: 0
E119: 118 | J119: 0
E120: 119 | J120: 0
E121: 120 | J121: 0
E122: 121 | J122: 0
E123: 122 | J123: 0
E124: 123 | J124: 0
E125: 124 | J125: 0
E126: 125 | J126: 0
E127: 126 | J127: 0
E128: 127 | J128: 0
E129: 128 | J129: 0
E130: 129 | J130: 0
E131: 130 | J131: 0
E132: 131 | J132: 0
E133: 132 | J133: 0
E134: 133 | J134: 0
E135: 134 | J135: 0
E136: 135 | J136: 0
E137: 136 | J137: 0
E138: 137 | J138: 0
E139: 138 | J139: 0
E140: 139 | J140: 0
E141: 140 | J141: 0
E142: 141 | J142: 0
E143: 142 | J143: 0
E144: 143 | J144: 0
E145: 144 | J145: 0
E146: 145 | J146: 0
E147: 146 | J147: 0
E148: 147 | J148: 0
E149: 148 | J149: 0
E150: 149 | J150: 0
E151: 150 | J151: 0
E152: 151 | J152: 0
E153: 152 | J153: 0
E154: 153 | J154: 0
E155: 154 | J155: 0
E156: 155 | J156: 0
E157: 156 | J157: 0
E158: 157 | J158: 0
E159: 158 | J159: 0
E160: 159 | J160: 0
E161: 160 | J161: 0
E162: 161 | J162: 0
E163: 162 | J163: 0
E164: 163 | J164: 0
E165: 164 | J165: 0
E166: 165 | J166: 0
E167: 166 | J167: 0
E168: 167 | J168: =IF(OR(H168=5,H168=10, H168=15, H168="BP",H168="SCR"),"NT",I168) -> 0
E169: 168 | J169: 0
E170: 169 | J170: 0
E171: 170 | J171: 0
E172: 171 | J172: 0
E173: 172 | J173: 0
E174: 173 | J174: 0
E175: 174 | J175: 0
E176: 175 | J176: 0
E177: 176 | J177: 0
E178: 177 | J178: 0
E179: 178 | J179: 0
E180: 179 | J180: 0
E181: 180 | J181: 0
E182: 181 | J182: 0
E183: 182 | J183: 0
E184: 183 | J184: 0
E185: 184 | J185: 0
E186: 185 | J186: 0
E187: 186 | J187: 0
E188: 187 | J188: 0
E189: 188 | J189: 0
E190: 189 | J190: 0
E191: 190 | J191: 0
E192: 191 | J192: 0
E193: 192 | J193: 0
E194: 193 | J194: 0
E195: 194 | J195: 0
E196: 195 | J196: 0
E197: 196 | J197: 0
E198: 197 | J198: 0
E199: 198 | J199: 0
E200: 199 | J200: 0
... 101 more rows

Sheet Futurity
A1: Futurity | B1: Der | C1: Age Inct. | D1: BBR | E1: Draw | F1: Rider Name | G1: Horse Name | H1: c/o | I1: Time | J1: Final Time | K1: Placing | L1: Money Earned
E2: 1 | F2: Nisa Berry | G2: NB Keep N Time | I2: 16.244 | K2: 1D 1st | L2: 240
E3: 2 | F3: Jackie Whitcher | G3: Blackjack Bay | I3: 16.295
E4: 3 | F4: Heidi Becker | G4: No Lion Kims Flying | I4: 16.32
E5: 4 | F5: Maddie Dewberry | G5: Flights Quick Chick | I5: 16.569
E6: 5 | F6: Jolene Jones | G6: Peppys Streakof Fame | I6: 16.6
E7: 6 | F7: Ginger Billingsley | G7: AllJokesAside | I7: 16.672
E8: 7 | F8: Blake Myers | G8: LuvOnDaRocks | I8: 17.128 | K8: 2D 1st | L8: 160
E9: 8 | F9: Dawn Link | G9: Domintnator | I9: 17.312
E10: 9 | F10: Kylee Scribner | G10: Firewater Cartel | I10: 17.407
E11: 10 | F11: Jessica Mullens | G11: Hakunamatadi | I11: N/T
E12: 11
E13: 12
E14: 13
E15: 14
E16: 15
E17: 16
E18: 17
E19: 18
E20: 19
E21: 20
E22: 21
E23: 22
E24: 23
E25: 24
E26: 25
E27: 26
E28: 27
E29: 28
E30: 29
E31: 30
E32: 31
E33: 32
E34: 33
E35: 34
E36: 35
E37: 36
E38: 37
E39: 38
E40: 39
E41: 40
E42: 41
E43: 42
E44: 43 | J44: =IF(OR(H44=5,H44=10, H44=15, H44="BP",H44="SCR"),"NT",I44) -> 0
E45: 44 | J45: 0
E46: 45 | J46: 0
E47: 46 | J47: 0
E48: 47 | J48: 0
E49: 48 | J49: 0
E50: 49 | J50: 0
E51: 50 | J51: 0
E52: 51 | J52: 0
E53: 52 | J53: 0
E54: 53 | J54: 0
E55: 54 | J55: 0
E56: 55 | J56: 0
E57: 56 | J57: 0
E58: 57 | J58: 0
E59: 58 | J59: 0
E60: 59 | J60: 0
E61: 60 | J61: 0
E62: 61 | J62: 0
E63: 62 | J63: 0
E64: 63 | J64: 0
E65: 64 | J65: 0
E66: 65 | J66: 0
E67: 66 | J67: 0
E68: 67 | J68: 0
E69: 68 | J69: 0
E70: 69 | J70: 0
E71: 70 | J71: 0
E72: 71 | J72: 0
E73: 72 | J73: 0
E74: 73 | J74: 0
E75: 74 | J75: 0
E76: 75 | J76: 0
E77: 76 | J77: 0
E78: 77 | J78: 0
E79: 78 | J79: 0
E80: 79 | J80: 0
E81: 80 | J81: 0
E82: 81 | J82: 0
E83: 82 | J83: 0
E84: 83 | J84: 0
E85: 84 | J85: 0
E86: 85 | J86: 0
E87: 86 | J87: 0
E88: 87 | J88: 0
E89: 88 | J89: 0
E90: 89 | J90: 0
E91: 90 | J91: 0
E92: 91 | J92: 0
E93: 92 | J93: 0
E94: 93 | J94: 0
E95: 94 | J95: 0
E96: 95 | J96: =IF(OR(H96=5,H96=10, H96=15, H96="BP",H96="SCR"),"NT",I96) -> 0
E97: 96 | J97: 0
E98: 97 | J98: 0
E99: 98 | J99: 0
E100: 99 | J100: 0
E101: 100 | J101: 0
E102: 101 | J102: 0
E103: 102 | J103: 0
E104: 103 | J104: 0
E105: 104 | J105: 0
E106: 105 | J106: 0
E107: 106 | J107: 0
E108: 107 | J108: 0
E109: 108 | J109: 0
E110: 109 | J110: 0
E111: 110 | J111: 0
E112: 111 | J112: 0
E113: 112 | J113: 0
E114: 113 | J114: 0
E115: 114 | J115: 0
E116: 115 | J116: 0
E117: 116 | J117: 0
E118: 117 | J118: 0
E119: 118 | J119: 0
E120: 119 | J120: 0
E121: 120 | J121: 0
E122: 121 | J122: 0
E123: 122 | J123: 0
E124: 123 | J124: 0
E125: 124 | J125: 0
E126: 125 | J126: 0
E127: 126 | J127: 0
E128: 127 | J128: 0
E129: 128 | J129: 0
E130: 129 | J130: 0
E131: 130 | J131: 0
E132: 131 | J132: 0
E133: 132 | J133: 0
E134: 133 | J134: 0
E135: 134 | J135: 0
E136: 135 | J136: 0
E137: 136 | J137: 0
E138: 137 | J138: 0
E139: 138 | J139: 0
E140: 139 | J140: 0
E141: 140 | J141: 0
E142: 141 | J142: 0
E143: 142 | J143: 0
E144: 143 | J144: 0
E145: 144 | J145: 0
E146: 145 | J146: 0
E147: 146 | J147: 0
E148: 147 | J148: 0
E149: 148 | J149: 0
E150: 149 | J150: 0
E151: 150 | J151: 0
E152: 151 | J152: 0
E153: 152 | J153: 0
E154: 153 | J154: 0
E155: 154 | J155: 0
E156: 155 | J156: 0
E157: 156 | J157: 0
E158: 157 | J158: 0
E159: 158 | J159: 0
E160: 159 | J160: =IF(OR(H160=5,H160=10, H160=15, H160="BP",H160="SCR"),"NT",I160) -> 0
E161: 160 | J161: 0
E162: 161 | J162: 0
E163: 162 | J163: 0
E164: 163 | J164: 0
E165: 164 | J165: 0
E166: 165 | J166: 0
E167: 166 | J167: 0
E168: 167 | J168: 0
E169: 168 | J169: 0
E170: 169 | J170: 0
E171: 170 | J171: 0
E172: 171 | J172: 0
E173: 172 | J173: 0
E174: 173 | J174: 0
E175: 174 | J175: 0
E176: 175 | J176: 0
E177: 176 | J177: 0
E178: 177 | J178: 0
E179: 178 | J179: 0
E180: 179 | J180: 0
E181: 180 | J181: 0
E182: 181 | J182: 0
E183: 182 | J183: 0
E184: 183 | J184: 0
E185: 184 | J185: 0
E186: 185 | J186: 0
E187: 186 | J187: 0
E188: 187 | J188: 0
E189: 188 | J189: 0
E190: 189 | J190: 0
E191: 190 | J191: 0
E192: 191 | J192: 0
E193: 192 | J193: 0
E194: 193 | J194: 0
E195: 194 | J195: 0
E196: 195 | J196: 0
E197: 196 | J197: 0
E198: 197 | J198: 0
E199: 198 | J199: 0
E200: 199 | J200: 0
... 101 more rows

Sheet 12 & Under (hidden)
A1: Futurity | B1: Der | C1: Age Inct. | D1: R/O | E1: Draw | F1: Rider Name | G1: Horse Name | H1: Time | I1: Final Time | J1: Placing | K1: Money Earned
E33: 32
E34: 33
E35: 34
E36: 35
E37: 36
E38: 37
E39: 38
E40: 39
E41: 40
E42: 41
E43: 42
E44: 43
E45: 44
E46: 45
E47: 46
E48: 47
E49: 48
E50: 49
E51: 50
E52: 51
E53: 52
E54: 53
E55: 54
E56: 55
E57: 56
E58: 57
E59: 58
E60: 59
E61: 60
E62: 61
E63: 62
E64: 63
E65: 64
E66: 65
E67: 66
E68: 67
E69: 68
E70: 69
E71: 70
E72: 71
E73: 72
E74: 73
E75: 74
E76: 75
E77: 76
E78: 77
E79: 78
E80: 79
E81: 80
E82: 81
E83: 82
E84: 83
E85: 84
E86: 85
E87: 86
E88: 87
E89: 88
E90: 89
E91: 90
E92: 91
E93: 92
E94: 93
E95: 94
E96: 95
E97: 96
E98: 97
E99: 98
E100: 99
E101: 100
E102: 101
E103: 102
E104: 103
E105: 104
E106: 105
E107: 106
E108: 107
E109: 108
E110: 109
E111: 110
E112: 111
E113: 112
E114: 113
E115: 114
E116: 115
E117: 116
E118: 117
E119: 118
E120: 119
E121: 120
E122: 121
E123: 122
E124: 123
E125: 124
E126: 125
E127: 126
E128: 127
E129: 128
E130: 129
E131: 130
E132: 131
E133: 132
E134: 133
E135: 134
E136: 135
E137: 136
E138: 137
E139: 138
E140: 139
E141: 140
E142: 141
E143: 142
E144: 143
E145: 144
E146: 145
E147: 146
E148: 147
E149: 148
E150: 149
E151: 150
E152: 151
E153: 152
E154: 153
E155: 154
E156: 155
E157: 156
E158: 157
E159: 158
E160: 159
E161: 160
E162: 161
E163: 162
E164: 163
E165: 164
E166: 165
E167: 166
E168: 167
E169: 168
E170: 169
E171: 170
E172: 171
E173: 172
E174: 173
E175: 174
E176: 175
E177: 176
E178: 177
E179: 178
E180: 179
E181: 180
E182: 181
E183: 182
E184: 183
E185: 184
E186: 185
E187: 186
E188: 187
E189: 188
E190: 189
E191: 190
E192: 191
E193: 192
E194: 193
E195: 194
E196: 195
E197: 196
E198: 197
E199: 198
E200: 199
E201: 200
E202: 201
E203: 202
E204: 203
E205: 204
E206: 205
E207: 206
E208: 207
E209: 208
E210: 209
E211: 210
E212: 211
E213: 212
E214: 213
E215: 214
E216: 215
E217: 216
E218: 217
E219: 218
E220: 219
E221: 220
E222: 221
E223: 222
E224: 223
E225: 224
E226: 225
E227: 226
E228: 227
E229: 228
E230: 229
E231: 230
... 70 more rows

Sheet Future champs
A1: Draw | B1: Rider Name | C1: Horse Name | D1: Pen | E1: Time | F1: Final Time | G1: Placing | H1: Money Earned
A2: 8 | B2: Peyton King | C2: Playboy | E2: 17.962
A3: 4 | B3: Reata Worthington | E3: 20.77
A4: 12 | B4: Austin Bednarz | E4: 21.079
A5: 10 | B5: Beyce Cain | C5: Dunny | E5: 21.083
A6: 5 | B6: Bentley Becker | C6: Nancy | E6: 21.122
A7: 13 | B7: Slade Donegan | C7: Bucky | E7: 24.351
A8: 9 | B8: Taela Jaminet | C8: Ducky | E8: 39.448
A9: 7 | B9: Lawson Kimball | E9: 57.21
A10: 6 | B10: Breelyn Black | C10: Poptart | E10: 60.661
A11: 11 | B11: Vera Morgan | C11: Butter | E11: 88.677
A12: 2 | B12: Bryson Rawson | E12: nt
A13: 1 | B13: Austin Bednarz | E13: nt21.471
A14: 14 | B14: Marli Donegan | C14: Fanny | E14: nt22.262
A15: 3
A16: 15
A17: 16
A18: 17 | F18: =IF(OR(D18=5,D18=10, D18=15, D18="BP",D18="SCR"),"NT",E18) -> 0
A19: 18 | F19: =IF(OR(D19=5,D19=10, D19=15, D19="BP",D19="SCR"),"NT",E19) -> 0
A20: 19 | F20: =IF(OR(D20=5,D20=10, D20=15, D20="BP",D20="SCR"),"NT",E20) -> 0
A21: 20 | F21: =IF(OR(D21=5,D21=10, D21=15, D21="BP",D21="SCR"),"NT",E21) -> 0

Sheet Average (hidden)
A1: Parker County Arena
A2: Open
A3: 4 Yr Fut | B3: 5 Yr Fut | C3: Der | D3: Age Inct. | E3: Am | F3: Carry | G3: T/C | H3: F/F | I3: Mem | J3: Nom | K3: Av | L3: BBR | M3: WPRA | N3: Draw | O3: Owner Name | P3: Rider Name | Q3: Horse Name | R3: Pen | S3: Time 1 | T3: Final Time 1 | U3: Pen | V3: Time 2 | W3: Final Time 2 | X3: Total Time | Y3: Average Time | Z3: Placing | AA3: Money Earned | AC3: D Placing | AE3: Split
N4: 1 | T4: =IF(OR(R4=5,R4=10, R4=15, R4="BP",R4="SCR"),"NT",S4) -> 0 | W4: =IF(OR(U4=5,U4=10, U4=15, U4="BP",U4="SCR"),"NT",V4) -> 0 | X4: =(T4+W4) -> 0 | Y4: =(T4+W4)/2 -> 0 | AC4: 1D
N5: 2 | T5: 0 | W5: 0 | X5: 0 | Y5: 0 | AC5: 2D | AD5: =$AD$4+$AE$5 -> 0.5 | AE5: 0.5
N6: 3 | T6: 0 | W6: 0 | X6: 0 | Y6: 0 | AC6: 3D | AD6: =$AD$5+$AE$6 -> 1 | AE6: 0.5
N7: 4 | T7: 0 | W7: 0 | X7: 0 | Y7: 0 | AC7: 4D | AD7: =$AD$6+$AE$7 -> 1.5 | AE7: 0.5
N8: 5 | T8: 0 | W8: 0 | X8: 0 | Y8: 0 | AC8: 5D | AD8: =$AD$7+$AE$8 -> 2 | AE8: 0.5
N9: 6 | T9: 0 | W9: 0 | X9: 0 | Y9: 0
N10: 7 | T10: 0 | W10: 0 | X10: 0 | Y10: 0 | AC10: # Entered
N11: 8 | T11: 0 | W11: 0 | X11: 0 | Y11: 0 | AC11: =COUNTA(P4:P503) -> 0
N12: 9 | T12: 0 | W12: 0 | X12: 0 | Y12: 0
N13: 10 | T13: 0 | W13: 0 | X13: 0 | Y13: 0
N14: 11 | T14: 0 | W14: 0 | X14: 0 | Y14: 0
N15: 12 | T15: 0 | W15: 0 | X15: 0 | Y15: 0
N16: 13 | T16: 0 | W16: 0 | X16: 0 | Y16: 0
N17: 14 | T17: =IF(OR(R17=5,R17=10, R17=15, R17="BP",R17="SCR"),"NT",S17) -> 0 | W17: =IF(OR(U17=5,U17=10, U17=15, U17="BP",U17="SCR"),"NT",V17) -> 0 | X17: =(T17+W17) -> 0 | Y17: =(T17+W17)/2 -> 0
N18: 15 | T18: 0 | W18: 0 | X18: 0 | Y18: 0
N19: 16 | T19: 0 | W19: 0 | X19: 0 | Y19: 0
N20: 17 | T20: 0 | W20: 0 | X20: 0 | Y20: 0
N21: 18 | T21: 0 | W21: 0 | X21: 0 | Y21: 0
N22: 19 | T22: 0 | W22: 0 | X22: 0 | Y22: 0
N23: 20 | T23: 0 | W23: 0 | X23: 0 | Y23: 0
N24: 21 | T24: 0 | W24: 0 | X24: 0 | Y24: 0
N25: 22 | T25: 0 | W25: 0 | X25: 0 | Y25: 0
N26: 23 | T26: 0 | W26: 0 | X26: 0 | Y26: 0
N27: 24 | T27: 0 | W27: 0 | X27: 0 | Y27: 0
N28: 25 | T28: 0 | W28: 0 | X28: 0 | Y28: 0
N29: 26 | T29: 0 | W29: 0 | X29: 0 | Y29: 0
N30: 27 | T30: 0 | W30: 0 | X30: 0 | Y30: 0
N31: 28 | T31: 0 | W31: 0 | X31: 0 | Y31: 0
N32: 29 | T32: 0 | W32: 0 | X32: 0 | Y32: 0
N33: 30 | T33: 0 | W33: 0 | X33: 0 | Y33: 0
N34: 31 | T34: 0 | W34: 0 | X34: 0 | Y34: 0
N35: 32 | T35: 0 | W35: 0 | X35: 0 | Y35: 0
N36: 33 | T36: 0 | W36: 0 | X36: 0 | Y36: 0
N37: 34 | T37: 0 | W37: 0 | X37: 0 | Y37: 0
N38: 35 | T38: 0 | W38: 0 | X38: 0 | Y38: 0
N39: 36 | T39: 0 | W39: 0 | X39: 0 | Y39: 0
N40: 37 | T40: 0 | W40: 0 | X40: 0 | Y40: 0
N41: 38 | T41: 0 | W41: 0 | X41: 0 | Y41: 0
N42: 39 | T42: 0 | W42: 0 | X42: 0 | Y42: 0
N43: 40 | T43: 0 | W43: 0 | X43: 0 | Y43: 0
N44: 41 | T44: 0 | W44: 0 | X44: 0 | Y44: 0
N45: 42 | T45: 0 | W45: 0 | X45: 0 | Y45: 0
N46: 43 | T46: 0 | W46: 0 | X46: 0 | Y46: 0
N47: 44 | T47: 0 | W47: 0 | X47: 0 | Y47: 0
N48: 45 | T48: 0 | W48: 0 | X48: 0 | Y48: 0
N49: 46 | T49: 0 | W49: 0 | X49: 0 | Y49: 0
N50: 47 | T50: 0 | W50: 0 | X50: 0 | Y50: 0
N51: 48 | T51: 0 | W51: 0 | X51: 0 | Y51: 0
N52: 49 | T52: 0 | W52: 0 | X52: 0 | Y52: 0
N53: 50 | T53: 0 | W53: 0 | X53: 0 | Y53: 0
N54: 51 | T54: 0 | W54: 0 | X54: 0 | Y54: 0
N55: 52 | T55: 0 | W55: 0 | X55: 0 | Y55: 0
N56: 53 | T56: 0 | W56: 0 | X56: 0 | Y56: 0
N57: 54 | T57: 0 | W57: 0 | X57: 0 | Y57: 0
N58: 55 | T58: 0 | W58: 0 | X58: 0 | Y58: 0
N59: 56 | T59: 0 | W59: 0 | X59: 0 | Y59: 0
N60: 57 | T60: 0 | W60: 0 | X60: 0 | Y60: 0
N61: 58 | T61: 0 | W61: 0 | X61: 0 | Y61: 0
N62: 59 | T62: 0 | W62: 0 | X62: 0 | Y62: 0
N63: 60 | T63: 0 | W63: 0 | X63: 0 | Y63: 0
N64: 61 | T64: 0 | W64: 0 | X64: 0 | Y64: 0
N65: 62 | T65: 0 | W65: 0 | X65: 0 | Y65: 0
N66: 63 | T66: 0 | W66: 0 | X66: 0 | Y66: 0
N67: 64 | T67: 0 | W67: 0 | X67: 0 | Y67: 0
N68: 65 | T68: 0 | W68: 0 | X68: 0 | Y68: 0
N69: 66 | T69: =IF(OR(R69=5,R69=10, R69=15, R69="BP",R69="SCR"),"NT",S69) -> 0 | W69: =IF(OR(U69=5,U69=10, U69=15, U69="BP",U69="SCR"),"NT",V69) -> 0 | X69: =(T69+W69) -> 0 | Y69: =(T69+W69)/2 -> 0
N70: 67 | T70: 0 | W70: 0 | X70: 0 | Y70: 0
N71: 68 | T71: 0 | W71: 0 | X71: 0 | Y71: 0
N72: 69 | T72: 0 | W72: 0 | X72: 0 | Y72: 0
N73: 70 | T73: 0 | W73: 0 | X73: 0 | Y73: 0
N74: 71 | T74: 0 | W74: 0 | X74: 0 | Y74: 0
N75: 72 | T75: 0 | W75: 0 | X75: 0 | Y75: 0
N76: 73 | T76: 0 | W76: 0 | X76: 0 | Y76: 0
N77: 74 | T77: 0 | W77: 0 | X77: 0 | Y77: 0
N78: 75 | T78: 0 | W78: 0 | X78: 0 | Y78: 0
N79: 76 | T79: 0 | W79: 0 | X79: 0 | Y79: 0
N80: 77 | T80: 0 | W80: 0 | X80: 0 | Y80: 0
N81: 78 | T81: 0 | W81: 0 | X81: 0 | Y81: 0
N82: 79 | T82: 0 | W82: 0 | X82: 0 | Y82: 0
N83: 80 | T83: 0 | W83: 0 | X83: 0 | Y83: 0
N84: 81 | T84: 0 | W84: 0 | X84: 0 | Y84: 0
N85: 82 | T85: 0 | W85: 0 | X85: 0 | Y85: 0
N86: 83 | T86: 0 | W86: 0 | X86: 0 | Y86: 0
N87: 84 | T87: 0 | W87: 0 | X87: 0 | Y87: 0
N88: 85 | T88: 0 | W88: 0 | X88: 0 | Y88: 0
N89: 86 | T89: 0 | W89: 0 | X89: 0 | Y89: 0
N90: 87 | T90: 0 | W90: 0 | X90: 0 | Y90: 0
N91: 88 | T91: 0 | W91: 0 | X91: 0 | Y91: 0
N92: 89 | T92: 0 | W92: 0 | X92: 0 | Y92: 0
N93: 90 | T93: 0 | W93: 0 | X93: 0 | Y93: 0
N94: 91 | T94: 0 | W94: 0 | X94: 0 | Y94: 0
N95: 92 | T95: 0 | W95: 0 | X95: 0 | Y95: 0
N96: 93 | T96: 0 | W96: 0 | X96: 0 | Y96: 0
N97: 94 | T97: 0 | W97: 0 | X97: 0 | Y97: 0
N98: 95 | T98: 0 | W98: 0 | X98: 0 | Y98: 0
N99: 96 | T99: 0 | W99: 0 | X99: 0 | Y99: 0
N100: 97 | T100: 0 | W100: 0 | X100: 0 | Y100: 0
N101: 98 | T101: 0 | W101: 0 | X101: 0 | Y101: 0
N102: 99 | T102: 0 | W102: 0 | X102: 0 | Y102: 0
N103: 100 | T103: 0 | W103: 0 | X103: 0 | Y103: 0
N104: 101 | T104: 0 | W104: 0 | X104: 0 | Y104: 0
N105: 102 | T105: 0 | W105: 0 | X105: 0 | Y105: 0
N106: 103 | T106: 0 | W106: 0 | X106: 0 | Y106: 0
N107: 104 | T107: 0 | W107: 0 | X107: 0 | Y107: 0
N108: 105 | T108: 0 | W108: 0 | X108: 0 | Y108: 0
N109: 106 | T109: 0 | W109: 0 | X109: 0 | Y109: 0
N110: 107 | T110: 0 | W110: 0 | X110: 0 | Y110: 0
N111: 108 | T111: 0 | W111: 0 | X111: 0 | Y111: 0
N112: 109 | T112: 0 | W112: 0 | X112: 0 | Y112: 0
N113: 110 | T113: 0 | W113: 0 | X113: 0 | Y113: 0
N114: 111 | T114: 0 | W114: 0 | X114: 0 | Y114: 0
N115: 112 | T115: 0 | W115: 0 | X115: 0 | Y115: 0
N116: 113 | T116: 0 | W116: 0 | X116: 0 | Y116: 0
N117: 114 | T117: 0 | W117: 0 | X117: 0 | Y117: 0
N118: 115 | T118: 0 | W118: 0 | X118: 0 | Y118: 0
N119: 116 | T119: 0 | W119: 0 | X119: 0 | Y119: 0
N120: 117 | T120: 0 | W120: 0 | X120: 0 | Y120: 0
N121: 118 | T121: 0 | W121: 0 | X121: 0 | Y121: 0
N122: 119 | T122: 0 | W122: 0 | X122: 0 | Y122: 0
N123: 120 | T123: 0 | W123: 0 | X123: 0 | Y123: 0
N124: 121 | T124: 0 | W124: 0 | X124: 0 | Y124: 0
N125: 122 | T125: 0 | W125: 0 | X125: 0 | Y125: 0
N126: 123 | T126: 0 | W126: 0 | X126: 0 | Y126: 0
N127: 124 | T127: 0 | W127: 0 | X127: 0 | Y127: 0
N128: 125 | T128: 0 | W128: 0 | X128: 0 | Y128: 0
N129: 126 | T129: 0 | W129: 0 | X129: 0 | Y129: 0
N130: 127 | T130: 0 | W130: 0 | X130: 0 | Y130: 0
N131: 128 | T131: 0 | W131: 0 | X131: 0 | Y131: 0
N132: 129 | T132: 0 | W132: 0 | X132: 0 | Y132: 0
N133: 130 | T133: =IF(OR(R133=5,R133=10, R133=15, R133="BP",R133="SCR"),"NT",S133) -> 0 | W133: =IF(OR(U133=5,U133=10, U133=15, U133="BP",U133="SCR"),"NT",V133) -> 0 | X133: =(T133+W133) -> 0 | Y133: =(T133+W133)/2 -> 0
N134: 131 | T134: 0 | W134: 0 | X134: 0 | Y134: 0
N135: 132 | T135: 0 | W135: 0 | X135: 0 | Y135: 0
N136: 133 | T136: 0 | W136: 0 | X136: 0 | Y136: 0
N137: 134 | T137: 0 | W137: 0 | X137: 0 | Y137: 0
N138: 135 | T138: 0 | W138: 0 | X138: 0 | Y138: 0
N139: 136 | T139: 0 | W139: 0 | X139: 0 | Y139: 0
N140: 137 | T140: 0 | W140: 0 | X140: 0 | Y140: 0
N141: 138 | T141: 0 | W141: 0 | X141: 0 | Y141: 0
N142: 139 | T142: 0 | W142: 0 | X142: 0 | Y142: 0
N143: 140 | T143: 0 | W143: 0 | X143: 0 | Y143: 0
N144: 141 | T144: 0 | W144: 0 | X144: 0 | Y144: 0
N145: 142 | T145: 0 | W145: 0 | X145: 0 | Y145: 0
N146: 143 | T146: 0 | W146: 0 | X146: 0 | Y146: 0
N147: 144 | T147: 0 | W147: 0 | X147: 0 | Y147: 0
N148: 145 | T148: 0 | W148: 0 | X148: 0 | Y148: 0
N149: 146 | T149: 0 | W149: 0 | X149: 0 | Y149: 0
N150: 147 | T150: 0 | W150: 0 | X150: 0 | Y150: 0
N151: 148 | T151: 0 | W151: 0 | X151: 0 | Y151: 0
N152: 149 | T152: 0 | W152: 0 | X152: 0 | Y152: 0
N153: 150 | T153: 0 | W153: 0 | X153: 0 | Y153: 0
N154: 151 | T154: 0 | W154: 0 | X154: 0 | Y154: 0
N155: 152 | T155: 0 | W155: 0 | X155: 0 | Y155: 0
N156: 153 | T156: 0 | W156: 0 | X156: 0 | Y156: 0
N157: 154 | T157: 0 | W157: 0 | X157: 0 | Y157: 0
N158: 155 | T158: 0 | W158: 0 | X158: 0 | Y158: 0
N159: 156 | T159: 0 | W159: 0 | X159: 0 | Y159: 0
N160: 157 | T160: 0 | W160: 0 | X160: 0 | Y160: 0
N161: 158 | T161: 0 | W161: 0 | X161: 0 | Y161: 0
N162: 159 | T162: 0 | W162: 0 | X162: 0 | Y162: 0
N163: 160 | T163: 0 | W163: 0 | X163: 0 | Y163: 0
N164: 161 | T164: 0 | W164: 0 | X164: 0 | Y164: 0
N165: 162 | T165: 0 | W165: 0 | X165: 0 | Y165: 0
N166: 163 | T166: 0 | W166: 0 | X166: 0 | Y166: 0
N167: 164 | T167: 0 | W167: 0 | X167: 0 | Y167: 0
N168: 165 | T168: 0 | W168: 0 | X168: 0 | Y168: 0
N169: 166 | T169: 0 | W169: 0 | X169: 0 | Y169: 0
N170: 167 | T170: 0 | W170: 0 | X170: 0 | Y170: 0
N171: 168 | T171: 0 | W171: 0 | X171: 0 | Y171: 0
N172: 169 | T172: 0 | W172: 0 | X172: 0 | Y172: 0
N173: 170 | T173: 0 | W173: 0 | X173: 0 | Y173: 0
N174: 171 | T174: 0 | W174: 0 | X174: 0 | Y174: 0
N175: 172 | T175: 0 | W175: 0 | X175: 0 | Y175: 0
N176: 173 | T176: 0 | W176: 0 | X176: 0 | Y176: 0
N177: 174 | T177: 0 | W177: 0 | X177: 0 | Y177: 0
N178: 175 | T178: 0 | W178: 0 | X178: 0 | Y178: 0
N179: 176 | T179: 0 | W179: 0 | X179: 0 | Y179: 0
N180: 177 | T180: 0 | W180: 0 | X180: 0 | Y180: 0
N181: 178 | T181: 0 | W181: 0 | X181: 0 | Y181: 0
N182: 179 | T182: 0 | W182: 0 | X182: 0 | Y182: 0
N183: 180 | T183: 0 | W183: 0 | X183: 0 | Y183: 0
N184: 181 | T184: 0 | W184: 0 | X184: 0 | Y184: 0
N185: 182 | T185: 0 | W185: 0 | X185: 0 | Y185: 0
N186: 183 | T186: 0 | W186: 0 | X186: 0 | Y186: 0
N187: 184 | T187: 0 | W187: 0 | X187: 0 | Y187: 0
N188: 185 | T188: 0 | W188: 0 | X188: 0 | Y188: 0
N189: 186 | T189: 0 | W189: 0 | X189: 0 | Y189: 0
N190: 187 | T190: 0 | W190: 0 | X190: 0 | Y190: 0
N191: 188 | T191: 0 | W191: 0 | X191: 0 | Y191: 0
N192: 189 | T192: 0 | W192: 0 | X192: 0 | Y192: 0
N193: 190 | T193: 0 | W193: 0 | X193: 0 | Y193: 0
N194: 191 | T194: 0 | W194: 0 | X194: 0 | Y194: 0
N195: 192 | T195: 0 | W195: 0 | X195: 0 | Y195: 0
N196: 193 | T196: 0 | W196: 0 | X196: 0 | Y196: 0
N197: 194 | T197: =IF(OR(R197=5,R197=10, R197=15, R197="BP",R197="SCR"),"NT",S197) -> 0 | W197: =IF(OR(U197=5,U197=10, U197=15, U197="BP",U197="SCR"),"NT",V197) -> 0 | X197: =(T197+W197) -> 0 | Y197: =(T197+W197)/2 -> 0
N198: 195 | T198: 0 | W198: 0 | X198: 0 | Y198: 0
N199: 196 | T199: 0 | W199: 0 | X199: 0 | Y199: 0
N200: 197 | T200: 0 | W200: 0 | X200: 0 | Y200: 0
... 303 more rows

Sheet BFA 2D Payout (hidden)
A1: BFA 2D Payout
A2: Entry Fee | B2: # Entries | C2: % Payback | D2: Added $ | E2: Total Payout | F2: Each Go
A3: 25 | B3: 19 | C3: 0.8 | D3: 200 | E3: =(A3*$C$3)*B3+D3 -> 580 | F3: 0.3
F4: =$E$3*$F$3 -> 174
A5: $5,000-7,500 Pays 5 Places 4 to 1D 1 to 2D
A6: Placings | B6: 1D | D6: 2D
A7: 1st | B7: =($F$4*$C$7) -> 57.42 | C7: 0.33 | D7: =$F$4*$E$7 -> 12.18 | E7: 0.07
A8: 2nd | B8: =$F$4*$C$8 -> 46.98 | C8: 0.27
A9: 3rd | B9: =$F$4*$C$9 -> 34.8 | C9: 0.2
A10: 4th | B10: =$F$4*$C$10 -> 22.62 | C10: 0.13
A11: Totals | B11: =SUM(B7:B10) -> 161.82 | D11: =SUM(D7:D10) -> 12.18 | E11: =(C7+C8+C9+C10+E7+E8) -> 1
A12: =B11+D11 -> 174
A13: $7,501 - 10,000 Pays 6 Places 4 to 1D, 2 to 2D
A14: Placings | B14: 1D | D14: 2D
A15: 1st | B15: =$F$4*$C$15 -> 50.46 | C15: 0.29 | D15: =$F$4*$E$15 -> 15.66 | E15: 0.09
A16: 2nd | B16: =+$F$4*$C$16 -> 41.76 | C16: 0.24 | D16: =F4*E16 -> 8.7 | E16: 0.05
A17: 3rd | B17: =$F$4*$C$17 -> 33.06 | C17: 0.19
A18: 4th | B18: =$F$4*$C$18 -> 24.36 | C18: 0.14
A19: Totals | B19: =SUM(B15:B18) -> 149.64 | D19: =D16+D15 -> 24.36 | E19: =SUM(C15+C16+C17+C18+E15+E16) -> 1
A20: =D19+B19 -> 174
A21: $10,001 - $15,000 Payes 8 Places 5 to 1D, 3 to 2D
A22: Placings | B22: 1D | D22: 2D
A23: 1st | B23: =F4*C23 -> 41.76 | C23: 0.24 | D23: =F4*E23 -> 12.18 | E23: 0.07
A24: 2nd | B24: =F4*C24 -> 34.8 | C24: 0.2 | D24: =F4*E24 -> 8.7 | E24: 0.05
A25: 3rd | B25: =F4*C25 -> 29.58 | C25: 0.17 | D25: =F4*E25 -> 6.96 | E25: 0.04
A26: 4th | B26: =F4*C26 -> 22.62 | C26: 0.13
A27: 5th | B27: =F4*C27 -> 17.4 | C27: 0.1
A28: Totals | B28: =SUM(B23:B27) -> 146.16 | D28: =SUM(D23:D27) -> 27.84 | E28: =C23+C24+C25+C26+C27+E23+E24+E25 -> 1
A29: =B28+D28 -> 174
A30: $15,001 - $25,000 Payes 11 Places 7 to 1D, 4 to 2D
A31: Placings | B31: 1D | D31: 2D
A32: 1st | B32: =$F$4*C32 -> 36.54 | C32: 0.21 | D32: =$F$4*E32 -> 8.7 | E32: 0.05
A33: 2nd | B33: =$F$4*C33 -> 31.32 | C33: 0.18 | D33: =$F$4*E33 -> 6.96 | E33: 0.04
A34: 3rd | B34: 26.1 | C34: 0.15 | D34: 5.22 | E34: 0.03
A35: 4th | B35: 19.14 | C35: 0.11 | D35: 3.48 | E35: 0.02
A36: 5th | B36: 13.92 | C36: 0.08
A37: 6th | B37: 12.18 | C37: 0.07
A38: 7th | B38: 10.44 | C38: 0.06
A39: Totals | B39: =SUM(B32:B38) -> 149.64 | D39: =SUM(D32:D38) -> 24.36 | E39: =C32+C33+C34+C35+C36+C37+C38+E32+E33+E34+E35 -> 1
A40: =SUM(B39+D39) -> 174
A41: $25,001 - $35,000 Payes 12 Places 8 to 1D, 4 to 2D
A42: Placings | B42: 1D | D42: 2D
A43: 1st | B43: =$F$4*C43 -> 33.06 | C43: 0.19 | D43: =$F$4*E43 -> 8.7 | E43: 0.05
A44: 2nd | B44: =$F$4*C44 -> 26.1 | C44: 0.15 | D44: =$F$4*E44 -> 6.96 | E44: 0.04
A45: 3rd | B45: 20.88 | C45: 0.12 | D45: 5.22 | E45: 0.03
A46: 4th | B46: 17.4 | C46: 0.1 | D46: 3.48 | E46: 0.02
A47: 5th | B47: 15.66 | C47: 0.09
A48: 6th | B48: 13.92 | C48: 0.08
A49: 7th | B49: 12.18 | C49: 0.07
A50: 8th | B50: 10.44 | C50: 0.06
A51: Totals | B51: =SUM(B43:B50) -> 149.64 | D51: =SUM(D43:D46) -> 24.36 | E51: =C43+C44+C45+C46+C47+C48+C49+C50+E43+E44+E45+E46 -> 1
A52: =D51+B51 -> 174

Sheet 2D Payout
A1: 2D Payout
A2: Entry Fee | B2: # Entries | C2: % Payback | D2: Added $ | E2: Total Payout
A3: 50 | B3: 10 | C3: 0.8 | D3: 0 | E3: =(A3*$C$3)*B3+D3 -> 400
A5: % in each D | B5: 0.6 | C5: 0.4 | D5: Total % = | E5: =SUM(B5:C5) -> 1
B6: 1D | C6: 2D
B7: =(($A$3*$B$3*$C$3*$B$5)+($D$3*$B$5)) -> 240 | C7: =(($A$3*$B$3*$C$3*$C$5)+($D$3*$C$5)) -> 160
A8: Totals | B8: =SUM(B7) -> 240 | C8: =SUM(C7) -> 160 | D8: =SUM(B8:C8) -> 400
A10: For 1-7 riders 1 place
A11: Placings | B11: 1D | C11: 2D
A12: 1st | B12: =$B$7*$E$12 -> 240 | C12: =$C$7*$E$5 -> 160 | D12: è | E12: 1
A13: Totals | B13: =SUM(B12:B12) -> 240 | C13: =SUM(C12:C12) -> 160 | D13: =SUM(B13:C13) -> 400 | E13: =SUM(E12) -> 1
A15: For 8-11 riders 2 places
A16: Placings | B16: 1D | C16: 2D
A17: 1st | B17: =$B$7*$E$17 -> 144 | C17: =$C$7*$E$17 -> 96 | D17: è | E17: 0.6
A18: 2nd | B18: =$B$7*$E$18 -> 96 | C18: =$C$7*$E$18 -> 64 | D18: è | E18: 0.4
A19: Totals | B19: =SUM(B17:B18) -> 240 | C19: =SUM(C17:C18) -> 160 | D19: =SUM(B19:C19) -> 400 | E19: =SUM(E17:E18) -> 1
A21: For 12-15 riders 3 places
A22: Placings | B22: 1D | C22: 2D
A23: 1st | B23: =$B$7*$E$23 -> 120 | C23: =$C$7*$E$23 -> 80 | D23: è | E23: 0.5
A24: 2nd | B24: =$B$7*$E$24 -> 72 | C24: =$C$7*$E$24 -> 48 | D24: è | E24: 0.3
A25: 3rd | B25: =$B$7*$E$25 -> 48 | C25: =$C$7*$E$25 -> 32 | D25: è | E25: 0.2
A26: Totals | B26: =SUM(B23:B25) -> 240 | C26: =SUM(C23:C25) -> 160 | D26: =SUM(B26:C26) -> 400 | E26: =SUM(E23:E25) -> 1
A28: For 16-19 riders 4 places
A29: Placings | B29: 1D | C29: 2D
A30: 1st | B30: =$B$7*$E$30 -> 96 | C30: =$C$7*$E$30 -> 64 | D30: è | E30: 0.4
A31: 2nd | B31: =$B$7*$E$31 -> 72 | C31: =$C$7*$E$31 -> 48 | D31: è | E31: 0.3
A32: 3rd | B32: =$B$7*$E$32 -> 48 | C32: =$C$7*$E$32 -> 32 | D32: è | E32: 0.2
A33: 4th | B33: =$B$7*$E$33 -> 24 | C33: =$C$7*$E$33 -> 16 | D33: è | E33: 0.1
A34: Totals | B34: =SUM(B30:B33) -> 240 | C34: =SUM(C30:C33) -> 160 | D34: =SUM(B34:C34) -> 400 | E34: =SUM(E30:E33) -> 1
A36: For 20-23 riders 5 places
A37: Placings | B37: 1D | C37: 2D
A38: 1st | B38: =$B$7*$E$38 -> 72 | C38: =$C$7*$E$38 -> 48 | D38: è | E38: 0.3
A39: 2nd | B39: =$B$7*$E$39 -> 60 | C39: =$C$7*$E$39 -> 40 | D39: è | E39: 0.25
A40: 3rd | B40: =$B$7*$E$40 -> 48 | C40: =$C$7*$E$40 -> 32 | D40: è | E40: 0.2
A41: 4th | B41: =$B$7*$E$41 -> 36 | C41: =$C$7*$E$41 -> 24 | D41: è | E41: 0.15
A42: 5th | B42: =$B$7*$E$42 -> 24 | C42: =$C$7*$E$42 -> 16 | D42: è | E42: 0.1
A43: Totals | B43: =SUM(B38:B42) -> 240 | C43: =SUM(C38:C42) -> 160 | D43: =SUM(B43:C43) -> 400 | E43: =SUM(E38:E42) -> 1
A45: For 24-27 riders 6 places
A46: Placings | B46: 1D | C46: 2D
A47: 1st | B47: =$B$7*$E$47 -> 60 | C47: =$C$7*$E$47 -> 40 | D47: è | E47: 0.25
A48: 2nd | B48: =$B$7*$E$48 -> 48 | C48: =$C$7*$E$48 -> 32 | D48: è | E48: 0.2
A49: 3rd | B49: =$B$7*$E$49 -> 43.2 | C49: =$C$7*$E$49 -> 28.8 | D49: è | E49: 0.18
A50: 4th | B50: =$B$7*$E$50 -> 36 | C50: =$C$7*$E$50 -> 24 | D50: è | E50: 0.15
A51: 5th | B51: =$B$7*$E$51 -> 28.8 | C51: =$C$7*$E$51 -> 19.2 | D51: è | E51: 0.12
A52: 6th | B52: =$B$7*$E$52 -> 24 | C52: =$C$7*$E$52 -> 16 | D52: è | E52: 0.1
A53: Totals | B53: =SUM(B47:B52) -> 240 | C53: =SUM(C47:C52) -> 160 | D53: =SUM(B53:C53) -> 400 | E53: =SUM(E47:E52) -> 1
A55: For 28-31 riders 7 places
A56: Placings | B56: 1D | C56: 2D
A57: 1st | B57: =$B$7*$E$57 -> 52.8 | C57: =$C$7*$E$57 -> 35.2 | D57: è | E57: 0.22
A58: 2nd | B58: =$B$7*$E$58 -> 43.2 | C58: =$C$7*$E$58 -> 28.8 | D58: è | E58: 0.18
A59: 3rd | B59: =$B$7*$E$59 -> 38.4 | C59: =$C$7*$E$59 -> 25.6 | D59: è | E59: 0.16
A60: 4th | B60: =$B$7*$E$60 -> 33.6 | C60: =$C$7*$E$60 -> 22.4 | D60: è | E60: 0.14
A61: 5th | B61: =$B$7*$E$61 -> 28.8 | C61: =$C$7*$E$61 -> 19.2 | D61: è | E61: 0.12
A62: 6th | B62: =$B$7*$E$62 -> 24 | C62: =$C$7*$E$62 -> 16 | D62: è | E62: 0.1
A63: 7th | B63: =$B$7*$E$63 -> 19.2 | C63: =$C$7*$E$63 -> 12.8 | D63: è | E63: 0.08
A64: Totals | B64: =SUM(B57:B63) -> 240 | C64: =SUM(C57:C63) -> 160 | D64: =SUM(B64:C64) -> 400 | E64: =SUM(E57:E63) -> 1
A66: For 32 or more riders 8 places
A67: Placings | B67: 1D | C67: 2D
A68: 1st | B68: =$B$7*$E$68 -> 55.2 | C68: =$C$7*$E$68 -> 36.8 | D68: è | E68: 0.23
A69: 2nd | B69: =$B$7*$E$69 -> 48 | C69: =$C$7*$E$69 -> 32 | D69: è | E69: 0.2
A70: 3rd | B70: =$B$7*$E$70 -> 40.8 | C70: =$C$7*$E$70 -> 27.2 | D70: è | E70: 0.17
A71: 4th | B71: =$B$7*$E$71 -> 33.6 | C71: =$C$7*$E$71 -> 22.4 | D71: è | E71: 0.14
A72: 5th | B72: =$B$7*$E$72 -> 26.4 | C72: =$C$7*$E$72 -> 17.6 | D72: è | E72: 0.11
A73: 6th | B73: =$B$7*$E$73 -> 19.2 | C73: =$C$7*$E$73 -> 12.8 | D73: è | E73: 0.08
A74: 7th | B74: =$B$7*$E$74 -> 12 | C74: =$C$7*$E$74 -> 8 | D74: è | E74: 0.05
A75: 8th | B75: =$B$7*$E$75 -> 4.8 | C75: =$C$7*$E$75 -> 3.2 | D75: è | E75: 0.02
A76: Totals | B76: =SUM(B68:B75) -> 240 | C76: =SUM(C68:C75) -> 160 | D76: =SUM(B76:C76) -> 400 | E76: =SUM(E68:E75) -> 1

Sheet 3D Payout (hidden)
A1: 3D Payout
A2: Entry Fee | B2: # Entries | C2: % Payback | D2: $ From Entry | E2: Added $ | F2: Total Payout
A3: 10 | B3: 3 | C3: 0.8 | D3: =$A$3*$C$3*$B$3 -> 24 | F3: =$D$3+$E$3 -> 24
A5: % in each D | B5: 0.5 | C5: 0.3 | D5: 0.2 | E5: Total % = | F5: =SUM(B5:D5) -> 1
B6: 1D | C6: 2D | D6: 3D
B7: =(($A$3*$B$3*$C$3*$B$5)+($E$3*$B$5)) -> 12 | C7: =(($A$3*$B$3*$C$3*$C$5)+($E$3*$C$5)) -> 7.2 | D7: =(($A$3*$B$3*$C$3*$D$5)+($E$3*$D$5)) -> 4.8
A8: Totals | B8: =SUM(B7) -> 12 | C8: =SUM(C7) -> 7.2 | D8: 4.8 | E8: =SUM(B8:D8) -> 24
A10: For 1-10 riders 1 place
A11: Placings | B11: 1D | C11: 2D | D11: 3D
A12: 1st | B12: =$B$7*$F$12 -> 12 | C12: =$C$7*$F$12 -> 7.2 | D12: =$D$7*$F$12 -> 4.8 | E12: è | F12: 1
A13: Totals | B13: =SUM(B12:B12) -> 12 | C13: =SUM(C12:C12) -> 7.2 | D13: =SUM(D12:D12) -> 4.8 | E13: =SUM(B13:D13) -> 24 | F13: =SUM(F12) -> 1
A15: For 11-15 riders 2 places
A16: Placings | B16: 1D | C16: 2D | D16: 3D
A17: 1st | B17: =$B$7*$F$17 -> 7.2 | C17: =$C$7*$F$17 -> 4.32 | D17: =$D$7*$F$17 -> 2.88 | E17: è | F17: 0.6
A18: 2nd | B18: =$B$7*$F$18 -> 4.8 | C18: =$C$7*$F$18 -> 2.88 | D18: =$D$7*$F$18 -> 1.92 | E18: è | F18: 0.4
A19: Totals | B19: =SUM(B17:B18) -> 12 | C19: =SUM(C17:C18) -> 7.2 | D19: =SUM(D17:D18) -> 4.8 | E19: =SUM(B19:D19) -> 24 | F19: =SUM(F17:F18) -> 1
A21: For 16-30 riders 3 places
A22: Placings | B22: 1D | C22: 2D | D22: 3D
A23: 1st | B23: =$B$7*$F$23 -> 6 | C23: =$C$7*$F$23 -> 3.6 | D23: =$D$7*$F$23 -> 2.4 | E23: è | F23: 0.5
A24: 2nd | B24: =$B$7*$F$24 -> 3.6 | C24: =$C$7*$F$24 -> 2.16 | D24: =$D$7*$F$24 -> 1.44 | E24: è | F24: 0.3
A25: 3rd | B25: =$B$7*$F$25 -> 2.4 | C25: =$C$7*$F$25 -> 1.44 | D25: =$D$7*$F$25 -> 0.96 | E25: è | F25: 0.2
A26: Totals | B26: =SUM(B23:B25) -> 12 | C26: =SUM(C23:C25) -> 7.2 | D26: =SUM(D22:D25) -> 4.8 | E26: =SUM(B26:D26) -> 24 | F26: =SUM(F23:F25) -> 1
A28: For 31-60 riders 4 places
A29: Placings | B29: 1D | C29: 2D | D29: 3D
A30: 1st | B30: =$B$7*$F$30 -> 5.04 | C30: =$C$7*$F$30 -> 3.024 | D30: =$D$7*$F$30 -> 2.016 | E30: è | F30: 0.42
A31: 2nd | B31: =$B$7*$F$31 -> 3.48 | C31: =$C$7*$F$31 -> 2.088 | D31: =$D$7*$F$31 -> 1.392 | E31: è | F31: 0.29
A32: 3rd | B32: =$B$7*$F$32 -> 2.28 | C32: =$C$7*$F$32 -> 1.368 | D32: =$D$7*$F$32 -> 0.912 | E32: è | F32: 0.19
A33: 4th | B33: =$B$7*$F$33 -> 1.2 | C33: =$C$7*$F$33 -> 0.72 | D33: =$D$7*$F$33 -> 0.48 | E33: è | F33: 0.1
A34: Totals | B34: =SUM(B30:B33) -> 12 | C34: =SUM(C30:C33) -> 7.2 | D34: =SUM(D30:D33) -> 4.8 | E34: =SUM(B34:D34) -> 24 | F34: =SUM(F30:F33) -> 1
A36: For 61-90 riders 5 places
A37: Placings | B37: 1D | C37: 2D | D37: 3D
A38: 1st | B38: =$B$7*$F$38 -> 4.56 | C38: =$C$7*$F$38 -> 2.736 | D38: =$D$7*$F$38 -> 1.824 | E38: è | F38: 0.38
A39: 2nd | B39: =$B$7*$F$39 -> 3.36 | C39: =$C$7*$F$39 -> 2.016 | D39: =$D$7*$F$39 -> 1.344 | E39: è | F39: 0.28
A40: 3rd | B40: =$B$7*$F$40 -> 2.16 | C40: =$C$7*$F$40 -> 1.296 | D40: =$D$7*$F$40 -> 0.864 | E40: è | F40: 0.18
A41: 4th | B41: =$B$7*$F$41 -> 1.2 | C41: =$C$7*$F$41 -> 0.72 | D41: =$D$7*$F$41 -> 0.48 | E41: è | F41: 0.1
A42: 5th | B42: =$B$7*$F$42 -> 0.72 | C42: =$C$7*$F$42 -> 0.432 | D42: =$D$7*$F$42 -> 0.288 | E42: è | F42: 0.06
A43: Totals | B43: =SUM(B38:B42) -> 12 | C43: =SUM(C38:C42) -> 7.2 | D43: =SUM(D38:D42) -> 4.8 | E43: =SUM(B43:D43) -> 24 | F43: =SUM(F38:F42) -> 1
A45: For 91-120 riders 6 places
A46: Placings | B46: 1D | C46: 2D | D46: 3D
A47: 1st | B47: =$B$7*$F$47 -> 4.32 | C47: =$C$7*$F$47 -> 2.592 | D47: =$D$7*$F$47 -> 1.728 | E47: è | F47: 0.36
A48: 2nd | B48: =$B$7*$F$48 -> 3.12 | C48: =$C$7*$F$48 -> 1.872 | D48: =$D$7*$F$48 -> 1.248 | E48: è | F48: 0.26
A49: 3rd | B49: =$B$7*$F$49 -> 1.92 | C49: =$C$7*$F$49 -> 1.152 | D49: =$D$7*$F$49 -> 0.768 | E49: è | F49: 0.16
A50: 4th | B50: =$B$7*$F$50 -> 1.2 | C50: =$C$7*$F$50 -> 0.72 | D50: =$D$7*$F$50 -> 0.48 | E50: è | F50: 0.1
A51: 5th | B51: =$B$7*$F$51 -> 0.84 | C51: =$C$7*$F$51 -> 0.504 | D51: =$D$7*$F$51 -> 0.336 | E51: è | F51: 0.07
A52: 6th | B52: =$B$7*$F$52 -> 0.6 | C52: =$C$7*$F$52 -> 0.36 | D52: =$D$7*$F$52 -> 0.24 | E52: è | F52: 0.05
A53: Totals | B53: =SUM(B47:B52) -> 12 | C53: =SUM(C47:C52) -> 7.2 | D53: =SUM(D47:D52) -> 4.8 | E53: =SUM(B53:D53) -> 24 | F53: =SUM(F47:F52) -> 1
A55: For 121-200 riders 7 places
A56: Placings | B56: 1D | C56: 2D | D56: 3D
A57: 1st | B57: =$B$7*$F$57 -> 3.12 | C57: =$C$7*$F$57 -> 1.872 | D57: =$D$7*$F$57 -> 1.248 | E57: è | F57: 0.26
A58: 2nd | B58: =$B$7*$F$58 -> 2.4 | C58: =$C$7*$F$58 -> 1.44 | D58: =$D$7*$F$58 -> 0.96 | E58: è | F58: 0.2
A59: 3rd | B59: =$B$7*$F$59 -> 1.8 | C59: =$C$7*$F$59 -> 1.08 | D59: =$D$7*$F$59 -> 0.72 | E59: è | F59: 0.15
A60: 4th | B60: =$B$7*$F$60 -> 1.44 | C60: =$C$7*$F$60 -> 0.864 | D60: =$D$7*$F$60 -> 0.576 | E60: è | F60: 0.12
A61: 5th | B61: =$B$7*$F$61 -> 1.2 | C61: =$C$7*$F$61 -> 0.72 | D61: =$D$7*$F$61 -> 0.48 | E61: è | F61: 0.1
A62: 6th | B62: =$B$7*$F$62 -> 1.08 | C62: =$C$7*$F$62 -> 0.648 | D62: =$D$7*$F$62 -> 0.432 | E62: è | F62: 0.09
A63: 7th | B63: =$B$7*$F$63 -> 0.96 | C63: =$C$7*$F$63 -> 0.576 | D63: =$D$7*$F$63 -> 0.384 | E63: è | F63: 0.08
A64: Totals | B64: =SUM(B57:B63) -> 12 | C64: =SUM(C57:C63) -> 7.2 | D64: =SUM(D57:D63) -> 4.8 | E64: =SUM(B64:D64) -> 24 | F64: =SUM(F57:F63) -> 1
A66: For 201 or more riders 8 places
A67: Placings | B67: 1D | C67: 2D | D67: 3D
A68: 1st | B68: =$B$7*0.24 -> 2.88 | C68: =$C$7*0.24 -> 1.728 | D68: =$D$7*0.24 -> 1.152 | E68: è | F68: 0.24
A69: 2nd | B69: =$B$7*0.18 -> 2.16 | C69: =$C$7*0.18 -> 1.296 | D69: =$D$7*0.18 -> 0.864 | E69: è | F69: 0.18
A70: 3rd | B70: =$B$7*0.15 -> 1.8 | C70: =$C$7*0.15 -> 1.08 | D70: =$D$7*0.15 -> 0.72 | E70: è | F70: 0.15
A71: 4th | B71: =$B$7*0.12 -> 1.44 | C71: =$C$7*0.12 -> 0.864 | D71: =$D$7*0.12 -> 0.576 | E71: è | F71: 0.12
A72: 5th | B72: =$B$7*0.1 -> 1.2 | C72: =$C$7*0.1 -> 0.72 | D72: =$D$7*0.1 -> 0.48 | E72: è | F72: 0.1
A73: 6th | B73: =$B$7*0.08 -> 0.96 | C73: =$C$7*0.08 -> 0.576 | D73: =$D$7*0.08 -> 0.384 | E73: è | F73: 0.08
A74: 7th | B74: =$B$7*0.07 -> 0.84 | C74: =$C$7*0.07 -> 0.504 | D74: =$D$7*0.07 -> 0.336 | E74: è | F74: 0.07
A75: 8th | B75: =$B$7*0.06 -> 0.72 | C75: =$C$7*0.06 -> 0.432 | D75: =$D$7*0.06 -> 0.288 | E75: è | F75: 0.06
A76: Totals | B76: =SUM(B68:B75) -> 12 | C76: =SUM(C68:C75) -> 7.2 | D76: =SUM(D68:D75) -> 4.8 | E76: =SUM(B76:D76) -> 24 | F76: =SUM(F68:F75) -> 1

Sheet 4D Payout BBR (hidden)
A1: 4D Payout BBR
A2: Entry Fee | B2: # Entries | C2: % Payback | D2: $ From Entry | E2: Added $ | F2: Total Payout
A3: 40 | B3: 200 | C3: 0.8 | D3: =$A$3*$C$3*$B$3 -> 6400 | E3: 1100 | F3: =($A$3*$C$3)*$B$3+$E$3 -> 7500
A5: % in each D | B5: 0.35 | C5: 0.3 | D5: 0.2 | E5: 0.15 | F5: Total % Payout | G5: =SUM(B5:E5) -> 1
B6: 1D | C6: 2D | D6: 3D | E6: 4D
B7: =(($A$3*$B$3*$C$3*0.35)+($E$3/4)) -> 2515 | C7: =(($A$3*$B$3*$C$3*0.3)+($E$3/4)) -> 2195 | D7: =(($A$3*$B$3*$C$3*0.2)+($E$3/4)) -> 1555 | E7: =(($A$3*$B$3*$C$3*0.15)+($E$3/4)) -> 1235
A8: Totals | B8: =SUM(B7) -> 2515 | C8: =SUM(C7) -> 2195 | D8: 1555 | E8: 1235 | F8: =SUM(B8:E8) -> 7500
A10: For 1-16 riders 1 place
A11: Placings | B11: 1D | C11: 2D | D11: 3D | E11: 4D
A12: 1st | B12: =$B$7*$G$12 -> 2515 | C12: =$C$7*$G$12 -> 2195 | D12: =$D$7*$G$12 -> 1555 | E12: =$E$7*$G$12 -> 1235 | F12: è | G12: 1
A13: Totals | B13: =SUM(B12:B12) -> 2515 | C13: =SUM(C12:C12) -> 2195 | D13: =SUM(D12:D12) -> 1555 | E13: =SUM(E12:E12) -> 1235 | F13: =SUM(B13:E13) -> 7500 | G13: =SUM(G12) -> 1
A15: For 17-33 riders 2 places
A16: Placings | B16: 1D | C16: 2D | D16: 3D | E16: 4D
A17: 1st | B17: =$B$7*$G$17 -> 1509 | C17: =$C$7*$G$17 -> 1317 | D17: =$D$7*$G$17 -> 933 | E17: =$E$7*$G$17 -> 741 | F17: è | G17: 0.6
A18: 2nd | B18: =$B$7*$G$18 -> 1006 | C18: =$C$7*$G$18 -> 878 | D18: =$D$7*$G$18 -> 622 | E18: =$E$7*$G$18 -> 494 | F18: è | G18: 0.4
A19: Totals | B19: =SUM(B17:B18) -> 2515 | C19: =SUM(C17:C18) -> 2195 | D19: =SUM(D17:D18) -> 1555 | E19: =SUM(E17:E18) -> 1235 | F19: =SUM(B19:E19) -> 7500 | G19: =SUM(G17:G18) -> 1
A21: For 34-66 riders 3 places
A22: Placings | B22: 1D | C22: 2D | D22: 3D | E22: 4D
A23: 1st | B23: =$B$7*$G$23 -> 1257.5 | C23: =$C$7*$G$23 -> 1097.5 | D23: =$D$7*$G$23 -> 777.5 | E23: =$E$7*$G$23 -> 617.5 | F23: è | G23: 0.5
A24: 2nd | B24: =$B$7*$G$24 -> 754.5 | C24: =$C$7*$G$24 -> 658.5 | D24: =$D$7*$G$24 -> 466.5 | E24: =$E$7*$G$24 -> 370.5 | F24: è | G24: 0.3
A25: 3rd | B25: =$B$7*$G$25 -> 503 | C25: =$C$7*$G$25 -> 439 | D25: =$D$7*$G$25 -> 311 | E25: =$E$7*$G$25 -> 247 | F25: è | G25: 0.2
A26: Totals | B26: =SUM(B23:B25) -> 2515 | C26: =SUM(C23:C25) -> 2195 | D26: =SUM(D23:D25) -> 1555 | E26: =SUM(E23:E25) -> 1235 | F26: =SUM(B26:E26) -> 7500 | G26: =SUM(G23:G25) -> 1
A28: For 97-95 riders 4 places
A29: Placings | B29: 1D | C29: 2D | D29: 3D | E29: 4D
A30: 1st | B30: =$B$7*$G$30 -> 1006 | C30: =$C$7*$G$30 -> 878 | D30: =$D$7*$G$30 -> 622 | E30: =$E$7*$G$30 -> 494 | F30: è | G30: 0.4
A31: 2nd | B31: =$B$7*$G$31 -> 754.5 | C31: =$C$7*$G$31 -> 658.5 | D31: =$D$7*$G$31 -> 466.5 | E31: =$E$7*$G$31 -> 370.5 | F31: è | G31: 0.3
A32: 3rd | B32: =$B$7*$G$32 -> 503 | C32: =$C$7*$G$32 -> 439 | D32: =$D$7*$G$32 -> 311 | E32: =$E$7*$G$32 -> 247 | F32: è | G32: 0.2
A33: 4th | B33: =$B$7*$G$33 -> 251.5 | C33: =$C$7*$G$33 -> 219.5 | D33: =$D$7*$G$33 -> 155.5 | E33: =$E$7*$G$33 -> 123.5 | F33: è | G33: 0.1
A34: Totals | B34: =SUM(B30:B33) -> 2515 | C34: =SUM(C30:C33) -> 2195 | D34: =SUM(D30:D33) -> 1555 | E34: =SUM(E30:E33) -> 1235 | F34: =SUM(B34:E34) -> 7500 | G34: =SUM(G30:G33) -> 1
A36: For 96-133 riders 5 places
A37: Placings | B37: 1D | C37: 2D | D37: 3D | E37: 4D
A38: 1st | B38: =$B$7*$G$38 -> 829.95 | C38: =$C$7*$G$38 -> 724.35 | D38: =$D$7*G38 -> 513.15 | E38: =$E$7*$G$38 -> 407.55 | F38: è | G38: 0.33
A39: 2nd | B39: =$B$7*$G$39 -> 679.05 | C39: =$C$7*$G$39 -> 592.65 | D39: =$D$7*$G$39 -> 419.85 | E39: =$E$7*$G$39 -> 333.45 | F39: è | G39: 0.27
A40: 3rd | B40: =$B$7*$G$40 -> 503 | C40: =$C$7*$G$40 -> 439 | D40: =$D$7*$G$40 -> 311 | E40: =$E$7*$G$40 -> 247 | F40: è | G40: 0.2
A41: 4th | B41: =$B$7*$G$41 -> 326.95 | C41: =$C$7*$G$41 -> 285.35 | D41: =$D$7*$G$41 -> 202.15 | E41: =$E$7*$G$41 -> 160.55 | F41: è | G41: 0.13
A42: 5th | B42: =$B$7*$G$42 -> 176.05 | C42: =$C$7*$G$42 -> 153.65 | D42: =$D$7*$G$42 -> 108.85 | E42: =$E$7*$G$42 -> 86.45 | F42: è | G42: 0.07
A43: Totals | B43: =SUM(B38:B42) -> 2515 | C43: =SUM(C38:C42) -> 2195 | D43: =SUM(D38:D42) -> 1555 | E43: =SUM(E38:E42) -> 1235 | F43: =SUM(B43:E43) -> 7500 | G43: =SUM(G38:G42) -> 1
A45: For 134-166 riders 6 places
A46: Placings | B46: 1D | C46: 2D | D46: 3D | E46: 4D
A47: 1st | B47: =$B$7*$G$47 -> 729.35 | C47: =$C$7*$G$47 -> 636.55 | D47: =$D$7*$G$47 -> 450.95 | E47: =$E$7*$G$47 -> 358.15 | F47: è | G47: 0.29
A48: 2nd | B48: =$B$7*$G$48 -> 603.6 | C48: =$C$7*$G$48 -> 526.8 | D48: =$D$7*$G$48 -> 373.2 | E48: =$E$7*$G$48 -> 296.4 | F48: è | G48: 0.24
A49: 3rd | B49: =$B$7*$G$49 -> 477.85 | C49: =$C$7*$G$49 -> 417.05 | D49: =$D$7*$G$49 -> 295.45 | E49: =$E$7*$G$49 -> 234.65 | F49: è | G49: 0.19
A50: 4th | B50: =$B$7*$G$50 -> 352.1 | C50: =$C$7*$G$50 -> 307.3 | D50: =$D$7*$G$50 -> 217.7 | E50: =$E$7*$G$50 -> 172.9 | F50: è | G50: 0.14
A51: 5th | B51: =$B$7*$G$51 -> 226.35 | C51: =$C$7*$G$51 -> 197.55 | D51: =$D$7*$G$51 -> 139.95 | E51: =$E$7*$G$51 -> 111.15 | F51: è | G51: 0.09
A52: 6th | B52: =$B$7*$G$52 -> 125.75 | C52: =$C$7*$G$52 -> 109.75 | D52: =$D$7*$G$52 -> 77.75 | E52: =$E$7*$G$52 -> 61.75 | F52: è | G52: 0.05
A53: Totals | B53: =SUM(B47:B52) -> 2515 | C53: =SUM(C47:C52) -> 2195 | D53: =SUM(D47:D52) -> 1555 | E53: =SUM(E47:E52) -> 1235 | F53: =SUM(B53:E53) -> 7500 | G53: =SUM(G47:G52) -> 1
A55: For 167-222 riders 8 places
A56: Placings | B56: 1D | C56: 2D | D56: 3D | E56: 4D
A57: 1st | B57: =$B$7*$G$57 -> 603.6 | C57: =$C$7*$G$57 -> 526.8 | D57: =$D$7*$G$57 -> 373.2 | E57: =$E$7*$G$57 -> 296.4 | F57: è | G57: 0.24
A58: 2nd | B58: =$B$7*$G$58 -> 503 | C58: =$C$7*$G$58 -> 439 | D58: =$D$7*$G$58 -> 311 | E58: =$E$7*$G$58 -> 247 | F58: è | G58: 0.2
A59: 3rd | B59: =$B$7*$G$59 -> 427.55 | C59: =$C$7*$G$59 -> 373.15 | D59: =$D$7*$G$59 -> 264.35 | E59: =$E$7*$G$59 -> 209.95 | F59: è | G59: 0.17
A60: 4th | B60: =$B$7*$G$60 -> 326.95 | C60: =$C$7*$G$60 -> 285.35 | D60: =$D$7*$G$60 -> 202.15 | E60: =$E$7*$G$60 -> 160.55 | F60: è | G60: 0.13
A61: 5th | B61: =$B$7*$G$61 -> 251.5 | C61: =$C$7*$G$61 -> 219.5 | D61: =$D$7*$G$61 -> 155.5 | E61: =$E$7*$G$61 -> 123.5 | F61: è | G61: 0.1
A62: 6th | B62: =$B$7*$G$62 -> 176.05 | C62: =$C$7*$G$62 -> 153.65 | D62: =$D$7*$G$62 -> 108.85 | E62: =$E$7*$G$62 -> 86.45 | F62: è | G62: 0.07
A63: 7th | B63: =$B$7*$G$63 -> 125.75 | C63: =$C$7*$G$63 -> 109.75 | D63: =$D$7*$G$63 -> 77.75 | E63: =$E$7*$G$63 -> 61.75 | F63: è | G63: 0.05
A64: 8th | B64: =$B$7*$G$64 -> 100.6 | C64: =$C$7*$G$64 -> 87.8 | D64: =$D$7*$G$64 -> 62.2 | E64: =$E$7*$G$64 -> 49.4 | F64: è | G64: 0.04
A65: Totals | B65: =SUM(B57:B64) -> 2515 | C65: =SUM(C57:C64) -> 2195 | D65: =SUM(D57:D64) -> 1555 | E65: =SUM(E57:E64) -> 1235 | F65: =SUM(B65:E65) -> 7500 | G65: =SUM(G57:G64) -> 1
A67: For 223-333 riders 10 places
A68: Placings | B68: 1D | C68: 2D | D68: 3D | E68: 4D
A69: 1st | B69: =$B$7*$G$69 -> 528.15 | C69: =$C$7*$G$69 -> 460.95 | D69: =$D$7*$G$69 -> 326.55 | E69: =$E$7*$G$69 -> 259.35 | F69: è | G69: 0.21
A70: 2nd | B70: =$B$7*$G$70 -> 452.7 | C70: =$C$7*$G$70 -> 395.1 | D70: =$D$7*$G$70 -> 279.9 | E70: =$E$7*$G$70 -> 222.3 | F70: è | G70: 0.18
A71: 3rd | B71: =$B$7*$G$71 -> 377.25 | C71: =$C$7*$G$71 -> 329.25 | D71: =$D$7*$G$71 -> 233.25 | E71: =$E$7*$G$71 -> 185.25 | F71: è | G71: 0.15
A72: 4th | B72: =$B$7*$G$72 -> 301.8 | C72: =$C$7*$G$72 -> 263.4 | D72: =$D$7*$G$72 -> 186.6 | E72: =$E$7*$G$72 -> 148.2 | F72: è | G72: 0.12
A73: 5th | B73: =$B$7*$G$73 -> 226.35 | C73: =$C$7*$G$73 -> 197.55 | D73: =$D$7*$G$73 -> 139.95 | E73: =$E$7*$G$73 -> 111.15 | F73: è | G73: 0.09
A74: 6th | B74: =$B$7*$G$74 -> 176.05 | C74: =$C$7*$G$74 -> 153.65 | D74: =$D$7*$G$74 -> 108.85 | E74: =$E$7*$G$74 -> 86.45 | F74: è | G74: 0.07
A75: 7th | B75: =$B$7*$G$75 -> 150.9 | C75: =$C$7*$G$75 -> 131.7 | D75: =$D$7*$G$75 -> 93.3 | E75: =$E$7*$G$75 -> 74.1 | F75: è | G75: 0.06
A76: 8th | B76: =$B$7*$G$76 -> 125.75 | C76: =$C$7*$G$76 -> 109.75 | D76: =$D$7*$G$76 -> 77.75 | E76: =$E$7*$G$76 -> 61.75 | F76: è | G76: 0.05
A77: 9th | B77: =$B$7*$G$77 -> 100.6 | C77: =$C$7*$G$77 -> 87.8 | D77: =$D$7*$G$77 -> 62.2 | E77: =$E$7*$G$77 -> 49.4 | F77: è | G77: 0.04
A78: 10th | B78: =$B$7*$G$78 -> 75.45 | C78: =$C$7*$G$78 -> 65.85 | D78: =$D$7*$G$78 -> 46.65 | E78: =$E$7*$G$78 -> 37.05 | F78: è | G78: 0.03
A79: Totals | B79: =SUM(B69:B78) -> 2515 | C79: =SUM(C69:C78) -> 2195 | D79: =SUM(D69:D78) -> 1555 | E79: =SUM(E69:E78) -> 1235 | F79: =B79+C79+D79+E79 -> 7500 | G79: =SUM(G69:G78) -> 1
A81: For 334-500 riders 12 places
A82: Placings | B82: 1D | C82: 2D | D82: 3D | E82: 4D
A83: 1st | B83: =$B$7*$G$83 -> 477.85 | C83: =$C$7*$G$83 -> 417.05 | D83: =$D$7*$G$83 -> 295.45 | E83: =$E$7*$G$83 -> 234.65 | F83: è | G83: 0.19
A84: 2nd | B84: =$B$7*$G$84 -> 377.25 | C84: =$C$7*$G$84 -> 329.25 | D84: =$D$7*$G$84 -> 233.25 | E84: =$E$7*$G$84 -> 185.25 | F84: è | G84: 0.15
A85: 3rd | B85: =$B$7*$G$85 -> 301.8 | C85: =$C$7*$G$85 -> 263.4 | D85: =$D$7*$G$85 -> 186.6 | E85: =$E$7*$G$85 -> 148.2 | F85: è | G85: 0.12
A86: 4th | B86: =$B$7*$G$86 -> 251.5 | C86: =$C$7*$G$86 -> 219.5 | D86: =$D$7*$G$86 -> 155.5 | E86: =$E$7*$G$86 -> 123.5 | F86: è | G86: 0.1
A87: 5th | B87: =$B$7*$G$87 -> 226.35 | C87: =$C$7*$G$87 -> 197.55 | D87: =$D$7*$G$87 -> 139.95 | E87: =$E$7*$G$87 -> 111.15 | F87: è | G87: 0.09
A88: 6th | B88: =$B$7*$G$88 -> 201.2 | C88: =$C$7*$G$88 -> 175.6 | D88: =$D$7*$G$88 -> 124.4 | E88: =$E$7*$G$88 -> 98.8 | F88: è | G88: 0.08
A89: 7th | B89: =$B$7*$G$89 -> 176.05 | C89: =$C$7*$G$89 -> 153.65 | D89: =$D$7*$G$89 -> 108.85 | E89: =$E$7*$G$89 -> 86.45 | F89: è | G89: 0.07
A90: 8th | B90: =$B$7*$G$90 -> 150.9 | C90: =$C$7*$G$90 -> 131.7 | D90: =$D$7*$G$90 -> 93.3 | E90: =$E$7*$G$90 -> 74.1 | F90: è | G90: 0.06
A91: 9th | B91: =$B$7*$G$91 -> 125.75 | C91: =$C$7*$G$91 -> 109.75 | D91: =$D$7*$G$91 -> 77.75 | E91: =$E$7*$G$91 -> 61.75 | F91: è | G91: 0.05
A92: 10th | B92: =$B$7*$G$92 -> 100.6 | C92: =$C$7*$G$92 -> 87.8 | D92: =$D$7*$G$92 -> 62.2 | E92: =$E$7*$G$92 -> 49.4 | F92: è | G92: 0.04
A93: 11th | B93: =$B$7*$G$93 -> 75.45 | C93: =$C$7*$G$93 -> 65.85 | D93: =$D$7*$G$93 -> 46.65 | E93: =$E$7*$G$93 -> 37.05 | F93: è | G93: 0.03
A94: 12th | B94: =$B$7*$G$94 -> 50.3 | C94: =$C$7*$G$94 -> 43.9 | D94: =$D$7*$G$94 -> 31.1 | E94: =$E$7*$G$94 -> 24.7 | F94: è | G94: 0.02
A95: Totals | B95: =SUM(B83:B94) -> 2515 | C95: =SUM(C83:C94) -> 2195 | D95: 1555 | E95: 1235 | F95: =B95+C95+D95+E95 -> 7500 | G95: =SUM(G83:G94) -> 1
A97: For 501-750 riders 15 places
A98: Placings | B98: 1D | C98: 2D | D98: 3D | E98: 4D
A99: 1st | B99: =$B$7*$G$99 -> 452.7 | C99: =$C$7*$G$99 -> 395.1 | D99: =$D$7*$G$99 -> 279.9 | E99: =$E$7*$G$99 -> 222.3 | F99: è | G99: 0.18
A100: 2nd | B100: =$B$7*$G$100 -> 377.25 | C100: =$C$7*$G$100 -> 329.25 | D100: =$D$7*$G$100 -> 233.25 | E100: =$E$7*$G$100 -> 185.25 | F100: è | G100: 0.15
A101: 3rd | B101: =$B$7*$G$101 -> 301.8 | C101: =$C$7*$G$101 -> 263.4 | D101: =$D$7*$G$101 -> 186.6 | E101: =$E$7*$G$101 -> 148.2 | F101: è | G101: 0.12
A102: 4th | B102: =$B$7*$G$102 -> 251.5 | C102: =$C$7*$G$102 -> 219.5 | D102: =$D$7*$G$102 -> 155.5 | E102: =$E$7*$G$102 -> 123.5 | F102: è | G102: 0.1
A103: 5th | B103: =$B$7*$G$103 -> 213.775 | C103: =$C$7*$G$103 -> 186.575 | D103: =$D$7*$G$103 -> 132.175 | E103: =$E$7*$G$103 -> 104.975 | F103: è | G103: 0.085
A104: 6th | B104: =$B$7*$G$104 -> 176.05 | C104: =$C$7*$G$104 -> 153.65 | D104: =$D$7*$G$104 -> 108.85 | E104: =$E$7*$G$104 -> 86.45 | F104: è | G104: 0.07
A105: 7th | B105: =$B$7*$G$105 -> 150.9 | C105: =$C$7*$G$105 -> 131.7 | D105: =$D$7*$G$105 -> 93.3 | E105: =$E$7*$G$105 -> 74.1 | F105: è | G105: 0.06
A106: 8th | B106: =$B$7*$G$106 -> 125.75 | C106: =$C$7*$G$106 -> 109.75 | D106: =$D$7*$G$106 -> 77.75 | E106: =$E$7*$G$106 -> 61.75 | F106: è | G106: 0.05
A107: 9th | B107: =$B$7*$G$107 -> 106.8875 | C107: =$C$7*$G$107 -> 93.2875 | D107: =$D$7*$G$107 -> 66.0875 | E107: =$E$7*$G$107 -> 52.4875 | F107: è | G107: 0.0425
A108: 10th | B108: =$B$7*$G$108 -> 88.025 | C108: =$C$7*$G$108 -> 76.825 | D108: =$D$7*$G$108 -> 54.425 | E108: =$E$7*$G$108 -> 43.225 | F108: è | G108: 0.035
A109: 11th | B109: =$B$7*$G$109 -> 75.45 | C109: =$C$7*$G$109 -> 65.85 | D109: =$D$7*$G$109 -> 46.65 | E109: =$E$7*$G$109 -> 37.05 | F109: è | G109: 0.03
A110: 12th | B110: =$B$7*$G$110 -> 62.875 | C110: =$C$7*$G$110 -> 54.875 | D110: =$D$7*$G$110 -> 38.875 | E110: =$E$7*$G$110 -> 30.875 | F110: è | G110: 0.025
A111: 13th | B111: =$B$7*$G$111 -> 50.3 | C111: =$C$7*$G$111 -> 43.9 | D111: =$D$7*$G$111 -> 31.1 | E111: =$E$7*$G$111 -> 24.7 | F111: è | G111: 0.02
A112: 14th | B112: =$B$7*$G$112 -> 44.0125 | C112: =$C$7*$G$112 -> 38.4125 | D112: =$D$7*$G$112 -> 27.2125 | E112: =$E$7*$G$112 -> 21.6125 | F112: è | G112: 0.0175
A113: 15th | B113: =$B$7*$G$113 -> 37.725 | C113: =$C$7*$G$113 -> 32.925 | D113: =$D$7*$G$113 -> 23.325 | E113: =$E$7*$G$113 -> 18.525 | F113: è | G113: 0.015
A114: Totals | B114: =SUM(B99:B113) -> 2515 | C114: =SUM(C99:C113) -> 2195 | D114: 1555 | E114: 1235 | F114: =B114+C114+D114+E114 -> 7500 | G114: =SUM(G99:G113) -> 1
A116: For 751-1200 riders 20 places
A117: Placings | B117: 1D | C117: 2D | D117: 3D | E117: 4D
A118: 1st | B118: =$B$7*$G$118 -> 352.1 | C118: =$C$7*$G$118 -> 307.3 | D118: =$D$7*$G$118 -> 217.7 | E118: =$E$7*$G$118 -> 172.9 | F118: è | G118: 0.14
A119: 2nd | B119: =$B$7*$G$119 -> 276.65 | C119: =$C$7*$G$119 -> 241.45 | D119: =$D$7*$G$119 -> 171.05 | E119: =$E$7*$G$119 -> 135.85 | F119: è | G119: 0.11
A120: 3rd | B120: =$B$7*$G$120 -> 226.35 | C120: =$C$7*$G$120 -> 197.55 | D120: =$D$7*$G$120 -> 139.95 | E120: =$E$7*$G$120 -> 111.15 | F120: è | G120: 0.09
A121: 4th | B121: =$B$7*$G$121 -> 193.655 | C121: =$C$7*$G$121 -> 169.015 | D121: =$D$7*$G$121 -> 119.735 | E121: =$E$7*$G$121 -> 95.095 | F121: è | G121: 0.077
A122: 5th | B122: =$B$7*$G$122 -> 176.05 | C122: =$C$7*$G$122 -> 153.65 | D122: =$D$7*$G$122 -> 108.85 | E122: =$E$7*$G$122 -> 86.45 | F122: è | G122: 0.07
A123: 6th | B123: =$B$7*$G$123 -> 163.475 | C123: =$C$7*$G$123 -> 142.675 | D123: =$D$7*$G$123 -> 101.075 | E123: =$E$7*$G$123 -> 80.275 | F123: è | G123: 0.065
A124: 7th | B124: =$B$7*$G$124 -> 150.9 | C124: =$C$7*$G$124 -> 131.7 | D124: =$D$7*$G$124 -> 93.3 | E124: =$E$7*$G$124 -> 74.1 | F124: è | G124: 0.06
A125: 8th | B125: =$B$7*$G$125 -> 138.325 | C125: =$C$7*$G$125 -> 120.725 | D125: =$D$7*$G$125 -> 85.525 | E125: =$E$7*$G$125 -> 67.925 | F125: è | G125: 0.055
A126: 9th | B126: =$B$7*$G$126 -> 125.75 | C126: =$C$7*$G$126 -> 109.75 | D126: =$D$7*$G$126 -> 77.75 | E126: =$E$7*$G$126 -> 61.75 | F126: è | G126: 0.05
A127: 10th | B127: =$B$7*$G$127 -> 113.175 | C127: =$C$7*$G$127 -> 98.775 | D127: =$D$7*$G$127 -> 69.975 | E127: =$E$7*$G$127 -> 55.575 | F127: è | G127: 0.045
A128: 11th | B128: =$B$7*$G$128 -> 100.6 | C128: =$C$7*$G$128 -> 87.8 | D128: =$D$7*$G$128 -> 62.2 | E128: =$E$7*$G$128 -> 49.4 | F128: è | G128: 0.04
A129: 12th | B129: =$B$7*$G$129 -> 93.055 | C129: =$C$7*$G$129 -> 81.215 | D129: =$D$7*$G$129 -> 57.535 | E129: =$E$7*$G$129 -> 45.695 | F129: è | G129: 0.037
A130: 13th | B130: =$B$7*$G$130 -> 82.995 | C130: =$C$7*$G$130 -> 72.435 | D130: =$D$7*$G$130 -> 51.315 | E130: =$E$7*$G$130 -> 40.755 | F130: è | G130: 0.033
A131: 14th | B131: =$B$7*$G$131 -> 72.935 | C131: =$C$7*$G$131 -> 63.655 | D131: =$D$7*$G$131 -> 45.095 | E131: =$E$7*$G$131 -> 35.815 | F131: è | G131: 0.029
A132: 15th | B132: =$B$7*$G$132 -> 62.875 | C132: =$C$7*$G$132 -> 54.875 | D132: =$D$7*$G$132 -> 38.875 | E132: =$E$7*$G$132 -> 30.875 | F132: è | G132: 0.025
A133: 16th | B133: =$B$7*$G$133 -> 52.815 | C133: =$C$7*$G$133 -> 46.095 | D133: =$D$7*$G$133 -> 32.655 | E133: =$E$7*$G$133 -> 25.935 | F133: è | G133: 0.021
A134: 17th | B134: =$B$7*$G$134 -> 42.755 | C134: =$C$7*$G$134 -> 37.315 | D134: =$D$7*$G$134 -> 26.435 | E134: =$E$7*$G$134 -> 20.995 | F134: è | G134: 0.017
A135: 18th | B135: =$B$7*$G$135 -> 35.21 | C135: =$C$7*$G$135 -> 30.73 | D135: =$D$7*$G$135 -> 21.77 | E135: =$E$7*$G$135 -> 17.29 | F135: è | G135: 0.014
A136: 19th | B136: =$B$7*$G$136 -> 30.18 | C136: =$C$7*$G$136 -> 26.34 | D136: =$D$7*$G$136 -> 18.66 | E136: =$E$7*$G$136 -> 14.82 | F136: è | G136: 0.012
A137: 20th | B137: =$B$7*$G$137 -> 25.15 | C137: =$C$7*$G$137 -> 21.95 | D137: =$D$7*$G$137 -> 15.55 | E137: =$E$7*$G$137 -> 12.35 | F137: è | G137: 0.01
A138: Totals | B138: =SUM(B118:B137) -> 2515 | C138: =SUM(C118:C137) -> 2195 | D138: 1555 | E138: 1235 | F138: =B138+C138+D138+E138 -> 7500 | G138: =SUM(G118:G137) -> 1
A140: For 1201 or More riders 30 places
A141: Placings | B141: 1D | C141: 2D | D141: 3D | E141: 4D
A142: 1st | B142: =$B$7*$G$142 -> 301.8 | C142: =$C$7*$G$142 -> 263.4 | D142: =$D$7*$G$142 -> 186.6 | E142: =$E$7*$G$142 -> 148.2 | F142: è | G142: 0.12
A143: 2nd | B143: =$B$7*$G$143 -> 238.925 | C143: =$C$7*$G$143 -> 208.525 | D143: =$D$7*$G$143 -> 147.725 | E143: =$E$7*$G$143 -> 117.325 | F143: è | G143: 0.095
A144: 3rd | B144: =$B$7*$G$144 -> 183.595 | C144: =$C$7*$G$144 -> 160.235 | D144: =$D$7*$G$144 -> 113.515 | E144: =$E$7*$G$144 -> 90.155 | F144: è | G144: 0.073
A145: 4th | B145: =$B$7*$G$145 -> 155.93 | C145: =$C$7*$G$145 -> 136.09 | D145: =$D$7*$G$145 -> 96.41 | E145: =$E$7*$G$145 -> 76.57 | F145: è | G145: 0.062
A146: 5th | B146: =$B$7*$G$146 -> 125.75 | C146: =$C$7*$G$146 -> 109.75 | D146: =$D$7*$G$146 -> 77.75 | E146: =$E$7*$G$146 -> 61.75 | F146: è | G146: 0.05
A147: 6th | B147: =$B$7*$G$147 -> 113.175 | C147: =$C$7*$G$147 -> 98.775 | D147: =$D$7*$G$147 -> 69.975 | E147: =$E$7*$G$147 -> 55.575 | F147: è | G147: 0.045
A148: 7th | B148: =$B$7*$G$148 -> 108.145 | C148: =$C$7*$G$148 -> 94.385 | D148: =$D$7*$G$148 -> 66.865 | E148: =$E$7*$G$148 -> 53.105 | F148: è | G148: 0.043
A149: 8th | B149: =$B$7*$G$149 -> 100.6 | C149: =$C$7*$G$149 -> 87.8 | D149: =$D$7*$G$149 -> 62.2 | E149: =$E$7*$G$149 -> 49.4 | F149: è | G149: 0.04
A150: 9th | B150: =$B$7*$G$150 -> 93.055 | C150: =$C$7*$G$150 -> 81.215 | D150: =$D$7*$G$150 -> 57.535 | E150: =$E$7*$G$150 -> 45.695 | F150: è | G150: 0.037
A151: 10th | B151: =$B$7*$G$151 -> 88.025 | C151: =$C$7*$G$151 -> 76.825 | D151: =$D$7*$G$151 -> 54.425 | E151: =$E$7*$G$151 -> 43.225 | F151: è | G151: 0.035
A152: 11th | B152: =$B$7*$G$152 -> 82.995 | C152: =$C$7*$G$152 -> 72.435 | D152: =$D$7*$G$152 -> 51.315 | E152: =$E$7*$G$152 -> 40.755 | F152: è | G152: 0.033
A153: 12th | B153: =$B$7*$G$153 -> 77.965 | C153: =$C$7*$G$153 -> 68.045 | D153: =$D$7*$G$153 -> 48.205 | E153: =$E$7*$G$153 -> 38.285 | F153: è | G153: 0.031
A154: 13th | B154: =$B$7*$G$154 -> 72.935 | C154: =$C$7*$G$154 -> 63.655 | D154: =$D$7*$G$154 -> 45.095 | E154: =$E$7*$G$154 -> 35.815 | F154: è | G154: 0.029
A155: 14th | B155: =$B$7*$G$155 -> 67.905 | C155: =$C$7*$G$155 -> 59.265 | D155: =$D$7*$G$155 -> 41.985 | E155: =$E$7*$G$155 -> 33.345 | F155: è | G155: 0.027
A156: 15th | B156: =$B$7*$G$156 -> 62.875 | C156: =$C$7*$G$156 -> 54.875 | D156: =$D$7*$G$156 -> 38.875 | E156: =$E$7*$G$156 -> 30.875 | F156: è | G156: 0.025
A157: 16th | B157: =$B$7*$G$157 -> 60.36 | C157: =$C$7*$G$157 -> 52.68 | D157: =$D$7*$G$157 -> 37.32 | E157: =$E$7*$G$157 -> 29.64 | F157: è | G157: 0.024
A158: 17th | B158: =$B$7*$G$158 -> 57.845 | C158: =$C$7*$G$158 -> 50.485 | D158: =$D$7*$G$158 -> 35.765 | E158: =$E$7*$G$158 -> 28.405 | F158: è | G158: 0.023
A159: 18th | B159: =$B$7*$G$159 -> 55.33 | C159: =$C$7*$G$159 -> 48.29 | D159: =$D$7*$G$159 -> 34.21 | E159: =$E$7*$G$159 -> 27.17 | F159: è | G159: 0.022
A160: 19th | B160: =$B$7*$G$160 -> 52.815 | C160: =$C$7*$G$160 -> 46.095 | D160: =$D$7*$G$160 -> 32.655 | E160: =$E$7*$G$160 -> 25.935 | F160: è | G160: 0.021
A161: 20th | B161: =$B$7*$G$161 -> 50.3 | C161: =$C$7*$G$161 -> 43.9 | D161: =$D$7*$G$161 -> 31.1 | E161: =$E$7*$G$161 -> 24.7 | F161: è | G161: 0.02
A162: 21st | B162: =$B$7*$G$162 -> 47.785 | C162: =$C$7*$G$162 -> 41.705 | D162: =$D$7*$G$162 -> 29.545 | E162: =$E$7*$G$162 -> 23.465 | F162: è | G162: 0.019
A163: 22nd | B163: =$B$7*$G$163 -> 45.27 | C163: =$C$7*$G$163 -> 39.51 | D163: =$D$7*$G$163 -> 27.99 | E163: =$E$7*$G$163 -> 22.23 | F163: è | G163: 0.018
A164: 23rd | B164: =$B$7*$G$164 -> 42.755 | C164: =$C$7*$G$164 -> 37.315 | D164: =$D$7*$G$164 -> 26.435 | E164: =$E$7*$G$164 -> 20.995 | F164: è | G164: 0.017
A165: 24th | B165: =$B$7*$G$165 -> 40.24 | C165: =$C$7*$G$165 -> 35.12 | D165: =$D$7*$G$165 -> 24.88 | E165: =$E$7*$G$165 -> 19.76 | F165: è | G165: 0.016
A166: 25th | B166: =$B$7*$G$166 -> 37.725 | C166: =$C$7*$G$166 -> 32.925 | D166: =$D$7*$G$166 -> 23.325 | E166: =$E$7*$G$166 -> 18.525 | F166: è | G166: 0.015
A167: 26th | B167: =$B$7*$G$167 -> 35.21 | C167: =$C$7*$G$167 -> 30.73 | D167: =$D$7*$G$167 -> 21.77 | E167: =$E$7*$G$167 -> 17.29 | F167: è | G167: 0.014
A168: 27th | B168: =$B$7*$G$168 -> 32.695 | C168: =$C$7*$G$168 -> 28.535 | D168: =$D$7*$G$168 -> 20.215 | E168: =$E$7*$G$168 -> 16.055 | F168: è | G168: 0.013
A169: 28th | B169: =$B$7*$G$169 -> 30.18 | C169: =$C$7*$G$169 -> 26.34 | D169: =$D$7*$G$169 -> 18.66 | E169: =$E$7*$G$169 -> 14.82 | F169: è | G169: 0.012
A170: 29th | B170: =$B$7*$G$170 -> 27.665 | C170: =$C$7*$G$170 -> 24.145 | D170: =$D$7*$G$170 -> 17.105 | E170: =$E$7*$G$170 -> 13.585 | F170: è | G170: 0.011
A171: 30th | B171: =$B$7*$G$171 -> 25.15 | C171: =$C$7*$G$171 -> 21.95 | D171: =$D$7*$G$171 -> 15.55 | E171: =$E$7*$G$171 -> 12.35 | F171: è | G171: 0.01
A172: Totals | B172: =SUM(B142:B171) -> 2515 | C172: =SUM(C142:C171) -> 2195 | D172: =SUM(D142:D171) -> 1555 | E172: =SUM(E142:E171) -> 1235 | F172: =B172+C172+D172+E172 -> 7500 | G172: =SUM(G142:G171) -> 1

Sheet 5D Payout BBR
A1: 5D Payout BBR
A2: Entry Fee | B2: # Entries | C2: % Payback | D2: $ From Entry | E2: Added $ | F2: Total Payout | G2: Total $ Held
A3: 100 | B3: 3 | C3: 0.8 | D3: =$A$3*$C$3*$B$3 -> 240 | F3: =($A$3*$C$3)*$B$3+$E$3 -> 240 | G3: =$A$3*(100%-$C$3)*$B$3 -> 60
A5: % in each D | B5: 0.3 | C5: 0.25 | D5: 0.2 | E5: 0.15 | F5: 0.1 | G5: Total % Payout | H5: =SUM(B5:F5) -> 1
B6: 1D | C6: 2D | D6: 3D | E6: 4D | F6: 5D
B7: =(($A$3*$B$3*$C$3*$B$5)+($E$3*$B$5)) -> 72 | C7: =(($A$3*$B$3*$C$3*$C$5)+($E$3*$C$5)) -> 60 | D7: =(($A$3*$B$3*$C$3*$D$5)+($E$3*$D$5)) -> 48 | E7: =(($A$3*$B$3*$C$3*$E$5)+($E$3*$E$5)) -> 36 | F7: =(($A$3*$B$3*$C$3*$F$5)+($E$3*$F$5)) -> 24
A8: Totals | B8: =SUM(B7) -> 72 | C8: =SUM(C7) -> 60 | D8: 48 | E8: 36 | F8: 24 | G8: =SUM(B8:F8) -> 240
A10: For 1-25 riders 1 place
A11: Placings | B11: 1D | C11: 2D | D11: 3D | E11: 4D | F11: 5D
A12: 1st | B12: =$B$7*$H$12 -> 72 | C12: =$C$7*$H$12 -> 60 | D12: =$D$7*$H$12 -> 48 | E12: =$E$7*$H$12 -> 36 | F12: =$F$7*$H$12 -> 24 | G12: è | H12: 1
A13: Totals | B13: =SUM(B12:B12) -> 72 | C13: =SUM(C12:C12) -> 60 | D13: =SUM(D12:D12) -> 48 | E13: =SUM(E12:E12) -> 36 | F13: =SUM(F12) -> 24 | G13: =SUM(B13:F13) -> 240 | H13: =SUM(H12) -> 1
A15: For 26-50 riders 2 places
A16: Placings | B16: 1D | C16: 2D | D16: 3D | E16: 4D | F16: 5D
A17: 1st | B17: =$B$7*$H$17 -> 43.2 | C17: =$C$7*$H$17 -> 36 | D17: =$D$7*$H$17 -> 28.8 | E17: =$E$7*$H$17 -> 21.6 | F17: =$F$7*$H$17 -> 14.4 | G17: è | H17: 0.6
A18: 2nd | B18: =$B$7*$H$18 -> 28.8 | C18: =$C$7*$H$18 -> 24 | D18: =$D$7*$H$18 -> 19.2 | E18: =$E$7*$H$18 -> 14.4 | F18: =$F$7*$H$18 -> 9.6 | G18: è | H18: 0.4
A19: Totals | B19: =SUM(B17:B18) -> 72 | C19: =SUM(C17:C18) -> 60 | D19: =SUM(D17:D18) -> 48 | E19: =SUM(E17:E18) -> 36 | F19: =SUM(F17:F18) -> 24 | G19: =SUM(B19:F19) -> 240 | H19: =SUM(H17:H18) -> 1
A21: For 51-100 riders 3 places
A22: Placings | B22: 1D | C22: 2D | D22: 3D | E22: 4D | F22: 5D
A23: 1st | B23: =$B$7*$H$23 -> 36 | C23: =$C$7*$H$23 -> 30 | D23: =$D$7*$H$23 -> 24 | E23: =$E$7*$H$23 -> 18 | F23: =$F$7*$H$23 -> 12 | G23: è | H23: 0.5
A24: 2nd | B24: =$B$7*$H$24 -> 21.6 | C24: =$C$7*$H$24 -> 18 | D24: =$D$7*$H$24 -> 14.4 | E24: =$E$7*$H$24 -> 10.8 | F24: =$F$7*$H$24 -> 7.2 | G24: è | H24: 0.3
A25: 3rd | B25: =$B$7*$H$25 -> 14.4 | C25: =$C$7*$H$25 -> 12 | D25: =$D$7*$H$25 -> 9.6 | E25: =$E$7*$H$25 -> 7.2 | F25: =$F$7*$H$25 -> 4.8 | G25: è | H25: 0.2
A26: Totals | B26: =SUM(B23:B25) -> 72 | C26: =SUM(C23:C25) -> 60 | D26: =SUM(D23:D25) -> 48 | E26: =SUM(E23:E25) -> 36 | F26: =SUM(F23:F25) -> 24 | G26: =SUM(B26:F26) -> 240 | H26: =SUM(H23:H25) -> 1
A28: For 101-143 riders 4 places
A29: Placings | B29: 1D | C29: 2D | D29: 3D | E29: 4D | F29: 5D
A30: 1st | B30: =$B$7*$H$30 -> 28.8 | C30: =$C$7*$H$30 -> 24 | D30: =$D$7*$H$30 -> 19.2 | E30: =$E$7*$H$30 -> 14.4 | F30: =$F$7*$H$30 -> 9.6 | G30: è | H30: 0.4
A31: 2nd | B31: =$B$7*$H$31 -> 21.6 | C31: =$C$7*$H$31 -> 18 | D31: =$D$7*$H$31 -> 14.4 | E31: =$E$7*$H$31 -> 10.8 | F31: =$F$7*$H$31 -> 7.2 | G31: è | H31: 0.3
A32: 3rd | B32: =$B$7*$H$32 -> 14.4 | C32: =$C$7*$H$32 -> 12 | D32: =$D$7*$H$32 -> 9.6 | E32: =$E$7*$H$32 -> 7.2 | F32: =$F$7*$H$32 -> 4.8 | G32: è | H32: 0.2
A33: 4th | B33: =$B$7*$H$33 -> 7.2 | C33: =$C$7*$H$33 -> 6 | D33: =$D$7*$H$33 -> 4.8 | E33: =$E$7*$H$33 -> 3.6 | F33: =$F$7*$H$33 -> 2.4 | G33: è | H33: 0.1
A34: Totals | B34: =SUM(B30:B33) -> 72 | C34: =SUM(C30:C33) -> 60 | D34: =SUM(D30:D33) -> 48 | E34: =SUM(E30:E33) -> 36 | F34: =SUM(F30:F33) -> 24 | G34: =SUM(B34:F34) -> 240 | H34: =SUM(H30:H33) -> 1
A36: For 144-200 riders 5 places
A37: Placings | B37: 1D | C37: 2D | D37: 3D | E37: 4D | F37: 5D
A38: 1st | B38: =$B$7*$H$38 -> 23.76 | C38: =$C$7*$H$38 -> 19.8 | D38: =$D$7*$H$38 -> 15.84 | E38: =$E$7*$H$38 -> 11.88 | F38: =$F$7*$H$38 -> 7.92 | G38: è | H38: 0.33
A39: 2nd | B39: =$B$7*$H$39 -> 19.44 | C39: =$C$7*$H$39 -> 16.2 | D39: =$D$7*$H$39 -> 12.96 | E39: =$E$7*$H$39 -> 9.72 | F39: =$F$7*$H$39 -> 6.48 | G39: è | H39: 0.27
A40: 3rd | B40: =$B$7*$H$40 -> 14.4 | C40: =$C$7*$H$40 -> 12 | D40: =$D$7*$H$40 -> 9.6 | E40: =$E$7*$H$40 -> 7.2 | F40: =$F$7*$H$40 -> 4.8 | G40: è | H40: 0.2
A41: 4th | B41: =$B$7*$H$41 -> 9.36 | C41: =$C$7*$H$41 -> 7.8 | D41: =$D$7*$H$41 -> 6.24 | E41: =$E$7*$H$41 -> 4.68 | F41: =$F$7*$H$41 -> 3.12 | G41: è | H41: 0.13
A42: 5th | B42: =$B$7*$H$42 -> 5.04 | C42: =$C$7*$H$42 -> 4.2 | D42: =$D$7*$H$42 -> 3.36 | E42: =$E$7*$H$42 -> 2.52 | F42: =$F$7*$H$42 -> 1.68 | G42: è | H42: 0.07
A43: Totals | B43: =SUM(B38:B42) -> 72 | C43: =SUM(C38:C42) -> 60 | D43: =SUM(D38:D42) -> 48 | E43: =SUM(E38:E42) -> 36 | F43: =SUM(F38:F42) -> 24 | G43: =SUM(B43:F43) -> 240 | H43: =SUM(H38:H42) -> 1
A45: For 201-250 riders 6 places
A46: Placings | B46: 1D | C46: 2D | D46: 3D | E46: 4D | F46: 5D
A47: 1st | B47: =$B$7*$H$47 -> 20.88 | C47: =$C$7*$H$47 -> 17.4 | D47: =$D$7*$H$47 -> 13.92 | E47: =$E$7*$H$47 -> 10.44 | F47: =$F$7*$H$47 -> 6.96 | G47: è | H47: 0.29
A48: 2nd | B48: =$B$7*$H$48 -> 17.28 | C48: =$C$7*$H$48 -> 14.4 | D48: =$D$7*$H$48 -> 11.52 | E48: =$E$7*$H$48 -> 8.64 | F48: =$F$7*$H$48 -> 5.76 | G48: è | H48: 0.24
A49: 3rd | B49: =$B$7*$H$49 -> 13.68 | C49: =$C$7*$H$49 -> 11.4 | D49: =$D$7*$H$49 -> 9.12 | E49: =$E$7*$H$49 -> 6.84 | F49: =$F$7*$H$49 -> 4.56 | G49: è | H49: 0.19
A50: 4th | B50: =$B$7*$H$50 -> 10.08 | C50: =$C$7*$H$50 -> 8.4 | D50: =$D$7*$H$50 -> 6.72 | E50: =$E$7*$H$50 -> 5.04 | F50: =$F$7*$H$50 -> 3.36 | G50: è | H50: 0.14
A51: 5th | B51: =$B$7*$H$51 -> 6.48 | C51: =$C$7*$H$51 -> 5.4 | D51: =$D$7*$H$51 -> 4.32 | E51: =$E$7*$H$51 -> 3.24 | F51: =$F$7*$H$51 -> 2.16 | G51: è | H51: 0.09
A52: 6th | B52: =$B$7*$H$52 -> 3.6 | C52: =$C$7*$H$52 -> 3 | D52: =$D$7*$H$52 -> 2.4 | E52: =$E$7*$H$52 -> 1.8 | F52: =$F$7*$H$52 -> 1.2 | G52: è | H52: 0.05
A53: Totals | B53: =SUM(B47:B52) -> 72 | C53: =SUM(C47:C52) -> 60 | D53: =SUM(D47:D52) -> 48 | E53: =SUM(E47:E52) -> 36 | F53: =SUM(F47:F52) -> 24 | G53: =SUM(B53:F53) -> 240 | H53: =SUM(H47:H52) -> 1
A55: For 251-333 riders 8 places
A56: Placings | B56: 1D | C56: 2D | D56: 3D | E56: 4D | F56: 5D
A57: 1st | B57: =$B$7*$H$57 -> 17.28 | C57: =$C$7*$H$57 -> 14.4 | D57: =$D$7*$H$57 -> 11.52 | E57: =$E$7*$H$57 -> 8.64 | F57: =$F$7*$H$57 -> 5.76 | G57: è | H57: 0.24
A58: 2nd | B58: =$B$7*$H$58 -> 14.4 | C58: =$C$7*$H$58 -> 12 | D58: =$D$7*$H$58 -> 9.6 | E58: =$E$7*$H$58 -> 7.2 | F58: =$F$7*$H$58 -> 4.8 | G58: è | H58: 0.2
A59: 3rd | B59: =$B$7*$H$59 -> 12.24 | C59: =$C$7*$H$59 -> 10.2 | D59: =$D$7*$H$59 -> 8.16 | E59: =$E$7*$H$59 -> 6.12 | F59: =$F$7*$H$59 -> 4.08 | G59: è | H59: 0.17
A60: 4th | B60: =$B$7*$H$60 -> 9.36 | C60: =$C$7*$H$60 -> 7.8 | D60: =$D$7*$H$60 -> 6.24 | E60: =$E$7*$H$60 -> 4.68 | F60: =$F$7*$H$60 -> 3.12 | G60: è | H60: 0.13
A61: 5th | B61: =$B$7*$H$61 -> 7.2 | C61: =$C$7*$H$61 -> 6 | D61: =$D$7*$H$61 -> 4.8 | E61: =$E$7*$H$61 -> 3.6 | F61: =$F$7*$H$61 -> 2.4 | G61: è | H61: 0.1
A62: 6th | B62: =$B$7*$H$62 -> 5.04 | C62: =$C$7*$H$62 -> 4.2 | D62: =$D$7*$H$62 -> 3.36 | E62: =$E$7*$H$62 -> 2.52 | F62: =$F$7*$H$62 -> 1.68 | G62: è | H62: 0.07
A63: 7th | B63: =$B$7*$H$63 -> 3.6 | C63: =$C$7*$H$63 -> 3 | D63: =$D$7*$H$63 -> 2.4 | E63: =$E$7*$H$63 -> 1.8 | F63: =$F$7*$H$63 -> 1.2 | G63: è | H63: 0.05
A64: 8th | B64: =$B$7*$H$64 -> 2.88 | C64: =$C$7*$H$64 -> 2.4 | D64: =$D$7*$H$64 -> 1.92 | E64: =$E$7*$H$64 -> 1.44 | F64: =$F$7*$H$64 -> 0.96 | G64: è | H64: 0.04
A65: Totals | B65: =SUM(B57:B64) -> 72 | C65: =SUM(C57:C64) -> 60 | D65: =SUM(D57:D64) -> 48 | E65: =SUM(E57:E64) -> 36 | F65: =SUM(F57:F64) -> 24 | G65: =SUM(B65:F65) -> 240 | H65: =SUM(H57:H64) -> 1
A67: For 334-500 riders 10 places
A68: Placings | B68: 1D | C68: 2D | D68: 3D | E68: 4D | F68: 5D
A69: 1st | B69: =$B$7*$H$69 -> 15.12 | C69: =$C$7*$H$69 -> 12.6 | D69: =$D$7*$H$69 -> 10.08 | E69: =$E$7*$H$69 -> 7.56 | F69: =$F$7*$H$69 -> 5.04 | G69: è | H69: 0.21
A70: 2nd | B70: =$B$7*$H$70 -> 12.96 | C70: =$C$7*$H$70 -> 10.8 | D70: =$D$7*$H$70 -> 8.64 | E70: =$E$7*$H$70 -> 6.48 | F70: =$F$7*$H$70 -> 4.32 | G70: è | H70: 0.18
A71: 3rd | B71: =$B$7*$H$71 -> 10.8 | C71: =$C$7*$H$71 -> 9 | D71: =$D$7*$H$71 -> 7.2 | E71: =$E$7*$H$71 -> 5.4 | F71: =$F$7*$H$71 -> 3.6 | G71: è | H71: 0.15
A72: 4th | B72: =$B$7*$H$72 -> 8.64 | C72: =$C$7*$H$72 -> 7.2 | D72: =$D$7*$H$72 -> 5.76 | E72: =$E$7*$H$72 -> 4.32 | F72: =$F$7*$H$72 -> 2.88 | G72: è | H72: 0.12
A73: 5th | B73: =$B$7*$H$73 -> 6.48 | C73: =$C$7*$H$73 -> 5.4 | D73: =$D$7*$H$73 -> 4.32 | E73: =$E$7*$H$73 -> 3.24 | F73: =$F$7*$H$73 -> 2.16 | G73: è | H73: 0.09
A74: 6th | B74: =$B$7*$H$74 -> 5.04 | C74: =$C$7*$H$74 -> 4.2 | D74: =$D$7*$H$74 -> 3.36 | E74: =$E$7*$H$74 -> 2.52 | F74: =$F$7*$H$74 -> 1.68 | G74: è | H74: 0.07
A75: 7th | B75: =$B$7*$H$75 -> 4.32 | C75: =$C$7*$H$75 -> 3.6 | D75: =$D$7*$H$75 -> 2.88 | E75: =$E$7*$H$75 -> 2.16 | F75: =$F$7*$H$75 -> 1.44 | G75: è | H75: 0.06
A76: 8th | B76: =$B$7*$H$76 -> 3.6 | C76: =$C$7*$H$76 -> 3 | D76: =$D$7*$H$76 -> 2.4 | E76: =$E$7*$H$76 -> 1.8 | F76: =$F$7*$H$76 -> 1.2 | G76: è | H76: 0.05
A77: 9th | B77: =$B$7*$H$77 -> 2.88 | C77: =$C$7*$H$77 -> 2.4 | D77: =$D$7*$H$77 -> 1.92 | E77: =$E$7*$H$77 -> 1.44 | F77: =$F$7*$H$77 -> 0.96 | G77: è | H77: 0.04
A78: 10th | B78: =$B$7*$H$78 -> 2.16 | C78: =$C$7*$H$78 -> 1.8 | D78: =$D$7*$H$78 -> 1.44 | E78: =$E$7*$H$78 -> 1.08 | F78: =$F$7*$H$78 -> 0.72 | G78: è | H78: 0.03
A79: Totals | B79: =SUM(B69:B78) -> 72 | C79: =SUM(C69:C78) -> 60 | D79: 48 | E79: 36 | F79: 24 | G79: =SUM(B79:F79) -> 240 | H79: =SUM(H69:H78) -> 1
A81: For 501-666 riders 12 places
A82: Placings | B82: 1D | C82: 2D | D82: 3D | E82: 4D | F82: 5D
A83: 1st | B83: =$B$7*$H$83 -> 13.68 | C83: =$C$7*$H$83 -> 11.4 | D83: =$D$7*$H$83 -> 9.12 | E83: =$E$7*$H$83 -> 6.84 | F83: =$F$7*$H$83 -> 4.56 | G83: è | H83: 0.19
A84: 2nd | B84: =$B$7*$H$84 -> 10.8 | C84: =$C$7*$H$84 -> 9 | D84: =$D$7*$H$84 -> 7.2 | E84: =$E$7*$H$84 -> 5.4 | F84: =$F$7*$H$84 -> 3.6 | G84: è | H84: 0.15
A85: 3rd | B85: =$B$7*$H$85 -> 8.64 | C85: =$C$7*$H$85 -> 7.2 | D85: =$D$7*$H$85 -> 5.76 | E85: =$E$7*$H$85 -> 4.32 | F85: =$F$7*$H$85 -> 2.88 | G85: è | H85: 0.12
A86: 4th | B86: =$B$7*$H$86 -> 7.2 | C86: =$C$7*$H$86 -> 6 | D86: =$D$7*$H$86 -> 4.8 | E86: =$E$7*$H$86 -> 3.6 | F86: =$F$7*$H$86 -> 2.4 | G86: è | H86: 0.1
A87: 5th | B87: =$B$7*$H$87 -> 6.48 | C87: =$C$7*$H$87 -> 5.4 | D87: =$D$7*$H$87 -> 4.32 | E87: =$E$7*$H$87 -> 3.24 | F87: =$F$7*$H$87 -> 2.16 | G87: è | H87: 0.09
A88: 6th | B88: =$B$7*$H$88 -> 5.76 | C88: =$C$7*$H$88 -> 4.8 | D88: =$D$7*$H$88 -> 3.84 | E88: =$E$7*$H$88 -> 2.88 | F88: =$F$7*$H$88 -> 1.92 | G88: è | H88: 0.08
A89: 7th | B89: =$B$7*$H$89 -> 5.04 | C89: =$C$7*$H$89 -> 4.2 | D89: =$D$7*$H$89 -> 3.36 | E89: =$E$7*$H$89 -> 2.52 | F89: =$F$7*$H$89 -> 1.68 | G89: è | H89: 0.07
A90: 8th | B90: =$B$7*$H$90 -> 4.32 | C90: =$C$7*$H$90 -> 3.6 | D90: =$D$7*$H$90 -> 2.88 | E90: =$E$7*$H$90 -> 2.16 | F90: =$F$7*$H$90 -> 1.44 | G90: è | H90: 0.06
A91: 9th | B91: =$B$7*$H$91 -> 3.6 | C91: =$C$7*$H$91 -> 3 | D91: =$D$7*$H$91 -> 2.4 | E91: =$E$7*$H$91 -> 1.8 | F91: =$F$7*$H$91 -> 1.2 | G91: è | H91: 0.05
A92: 10th | B92: =$B$7*$H$92 -> 2.88 | C92: =$C$7*$H$92 -> 2.4 | D92: =$D$7*$H$92 -> 1.92 | E92: =$E$7*$H$92 -> 1.44 | F92: =$F$7*$H$92 -> 0.96 | G92: è | H92: 0.04
A93: 11th | B93: =$B$7*$H$93 -> 2.16 | C93: =$C$7*$H$93 -> 1.8 | D93: =$D$7*$H$93 -> 1.44 | E93: =$E$7*$H$93 -> 1.08 | F93: =$F$7*$H$93 -> 0.72 | G93: è | H93: 0.03
A94: 12th | B94: =$B$7*$H$94 -> 1.44 | C94: =$C$7*$H$94 -> 1.2 | D94: =$D$7*$H$94 -> 0.96 | E94: =$E$7*$H$94 -> 0.72 | F94: =$F$7*$H$94 -> 0.48 | G94: è | H94: 0.02
A95: Totals | B95: =SUM(B83:B94) -> 72 | C95: =SUM(C83:C94) -> 60 | D95: =SUM(D83:D94) -> 48 | E95: =SUM(E83:E94) -> 36 | F95: =SUM(F83:F94) -> 24 | G95: =SUM(B95:F95) -> 240 | H95: =SUM(H83:H94) -> 1
A97: For 667-1000 riders 15 places
A98: Placings | B98: 1D | C98: 2D | D98: 3D | E98: 4D | F98: 5D
A99: 1st | B99: =$B$7*$H$99 -> 12.96 | C99: =$C$7*$H$99 -> 10.8 | D99: =$D$7*$H$99 -> 8.64 | E99: =$E$7*$H$99 -> 6.48 | F99: =$F$7*$H$99 -> 4.32 | G99: è | H99: 0.18
A100: 2nd | B100: =$B$7*$H$100 -> 10.8 | C100: =$C$7*$H$100 -> 9 | D100: =$D$7*$H$100 -> 7.2 | E100: =$E$7*$H$100 -> 5.4 | F100: =$F$7*$H$100 -> 3.6 | G100: è | H100: 0.15
A101: 3rd | B101: =$B$7*$H$101 -> 8.64 | C101: =$C$7*$H$101 -> 7.2 | D101: =$D$7*$H$101 -> 5.76 | E101: =$E$7*$H$101 -> 4.32 | F101: =$F$7*$H$101 -> 2.88 | G101: è | H101: 0.12
A102: 4th | B102: =$B$7*$H$102 -> 7.2 | C102: =$C$7*$H$102 -> 6 | D102: =$D$7*$H$102 -> 4.8 | E102: =$E$7*$H$102 -> 3.6 | F102: =$F$7*$H$102 -> 2.4 | G102: è | H102: 0.1
A103: 5th | B103: =$B$7*$H$103 -> 6.12 | C103: =$C$7*$H$103 -> 5.1 | D103: =$D$7*$H$103 -> 4.08 | E103: =$E$7*$H$103 -> 3.06 | F103: =$F$7*$H$103 -> 2.04 | G103: è | H103: 0.085
A104: 6th | B104: =$B$7*$H$104 -> 5.04 | C104: =$C$7*$H$104 -> 4.2 | D104: =$D$7*$H$104 -> 3.36 | E104: =$E$7*$H$104 -> 2.52 | F104: =$F$7*$H$104 -> 1.68 | G104: è | H104: 0.07
A105: 7th | B105: =$B$7*$H$105 -> 4.32 | C105: =$C$7*$H$105 -> 3.6 | D105: =$D$7*$H$105 -> 2.88 | E105: =$E$7*$H$105 -> 2.16 | F105: =$F$7*$H$105 -> 1.44 | G105: è | H105: 0.06
A106: 8th | B106: =$B$7*$H$106 -> 3.6 | C106: =$C$7*$H$106 -> 3 | D106: =$D$7*$H$106 -> 2.4 | E106: =$E$7*$H$106 -> 1.8 | F106: =$F$7*$H$106 -> 1.2 | G106: è | H106: 0.05
A107: 9th | B107: =$B$7*$H$107 -> 3.06 | C107: =$C$7*$H$107 -> 2.55 | D107: =$D$7*$H$107 -> 2.04 | E107: =$E$7*$H$107 -> 1.53 | F107: =$F$7*$H$107 -> 1.02 | G107: è | H107: 0.0425
A108: 10th | B108: =$B$7*$H$108 -> 2.52 | C108: =$C$7*$H$108 -> 2.1 | D108: =$D$7*$H$108 -> 1.68 | E108: =$E$7*$H$108 -> 1.26 | F108: =$F$7*$H$108 -> 0.84 | G108: è | H108: 0.035
A109: 11th | B109: =$B$7*$H$109 -> 2.16 | C109: =$C$7*$H$109 -> 1.8 | D109: =$D$7*$H$109 -> 1.44 | E109: =$E$7*$H$109 -> 1.08 | F109: =$F$7*$H$109 -> 0.72 | G109: è | H109: 0.03
A110: 12th | B110: =$B$7*$H$110 -> 1.8 | C110: =$C$7*$H$110 -> 1.5 | D110: =$D$7*$H$110 -> 1.2 | E110: =$E$7*$H$110 -> 0.9 | F110: =$F$7*$H$110 -> 0.6 | G110: è | H110: 0.025
A111: 13th | B111: =$B$7*$H$111 -> 1.44 | C111: =$C$7*$H$111 -> 1.2 | D111: =$D$7*$H$111 -> 0.96 | E111: =$E$7*$H$111 -> 0.72 | F111: =$F$7*$H$111 -> 0.48 | G111: è | H111: 0.02
A112: 14th | B112: =$B$7*$H$112 -> 1.26 | C112: =$C$7*$H$112 -> 1.05 | D112: =$D$7*$H$112 -> 0.84 | E112: =$E$7*$H$112 -> 0.63 | F112: =$F$7*$H$112 -> 0.42 | G112: è | H112: 0.0175
A113: 15th | B113: =$B$7*$H$113 -> 1.08 | C113: =$C$7*$H$113 -> 0.9 | D113: =$D$7*$H$113 -> 0.72 | E113: =$E$7*$H$113 -> 0.54 | F113: =$F$7*$H$113 -> 0.36 | G113: è | H113: 0.015
A114: Totals | B114: =SUM(B99:B113) -> 72 | C114: =SUM(C99:C113) -> 60 | D114: =SUM(D99:D113) -> 48 | E114: =SUM(E99:E113) -> 36 | F114: =SUM(F99:F113) -> 24 | G114: =SUM(B114:F114) -> 240 | H114: =SUM(H99:H113) -> 1
A116: For 1001-1500 riders 20 places
A117: Placings | B117: 1D | C117: 2D | D117: 3D | E117: 4D | F117: 5D
A118: 1st | B118: =$B$7*$H$118 -> 10.08 | C118: =$C$7*$H$118 -> 8.4 | D118: =$D$7*$H$118 -> 6.72 | E118: =$E$7*$H$118 -> 5.04 | F118: =$F$7*$H$118 -> 3.36 | G118: è | H118: 0.14
A119: 2nd | B119: =$B$7*$H$119 -> 7.92 | C119: =$C$7*$H$119 -> 6.6 | D119: =$D$7*$H$119 -> 5.28 | E119: =$E$7*$H$119 -> 3.96 | F119: =$F$7*$H$119 -> 2.64 | G119: è | H119: 0.11
A120: 3rd | B120: =$B$7*$H$120 -> 6.48 | C120: =$C$7*$H$120 -> 5.4 | D120: =$D$7*$H$120 -> 4.32 | E120: =$E$7*$H$120 -> 3.24 | F120: =$F$7*$H$120 -> 2.16 | G120: è | H120: 0.09
A121: 4th | B121: =$B$7*$H$121 -> 5.544 | C121: =$C$7*$H$121 -> 4.62 | D121: =$D$7*$H$121 -> 3.696 | E121: =$E$7*$H$121 -> 2.772 | F121: =$F$7*$H$121 -> 1.848 | G121: è | H121: 0.077
A122: 5th | B122: =$B$7*$H$122 -> 5.04 | C122: =$C$7*$H$122 -> 4.2 | D122: =$D$7*$H$122 -> 3.36 | E122: =$E$7*$H$122 -> 2.52 | F122: =$F$7*$H$122 -> 1.68 | G122: è | H122: 0.07
A123: 6th | B123: =$B$7*$H$123 -> 4.68 | C123: =$C$7*$H$123 -> 3.9 | D123: =$D$7*$H$123 -> 3.12 | E123: =$E$7*$H$123 -> 2.34 | F123: =$F$7*$H$123 -> 1.56 | G123: è | H123: 0.065
A124: 7th | B124: =$B$7*$H$124 -> 4.32 | C124: =$C$7*$H$124 -> 3.6 | D124: =$D$7*$H$124 -> 2.88 | E124: =$E$7*$H$124 -> 2.16 | F124: =$F$7*$H$124 -> 1.44 | G124: è | H124: 0.06
A125: 8th | B125: =$B$7*$H$125 -> 3.96 | C125: =$C$7*$H$125 -> 3.3 | D125: =$D$7*$H$125 -> 2.64 | E125: =$E$7*$H$125 -> 1.98 | F125: =$F$7*$H$125 -> 1.32 | G125: è | H125: 0.055
A126: 9th | B126: =$B$7*$H$126 -> 3.6 | C126: =$C$7*$H$126 -> 3 | D126: =$D$7*$H$126 -> 2.4 | E126: =$E$7*$H$126 -> 1.8 | F126: =$F$7*$H$126 -> 1.2 | G126: è | H126: 0.05
A127: 10th | B127: =$B$7*$H$127 -> 3.24 | C127: =$C$7*$H$127 -> 2.7 | D127: =$D$7*$H$127 -> 2.16 | E127: =$E$7*$H$127 -> 1.62 | F127: =$F$7*$H$127 -> 1.08 | G127: è | H127: 0.045
A128: 11th | B128: =$B$7*$H$128 -> 2.88 | C128: =$C$7*$H$128 -> 2.4 | D128: =$D$7*$H$128 -> 1.92 | E128: =$E$7*$H$128 -> 1.44 | F128: =$F$7*$H$128 -> 0.96 | G128: è | H128: 0.04
A129: 12th | B129: =$B$7*$H$129 -> 2.664 | C129: =$C$7*$H$129 -> 2.22 | D129: =$D$7*$H$129 -> 1.776 | E129: =$E$7*$H$129 -> 1.332 | F129: =$F$7*$H$129 -> 0.888 | G129: è | H129: 0.037
A130: 13th | B130: =$B$7*$H$130 -> 2.376 | C130: =$C$7*$H$130 -> 1.98 | D130: =$D$7*$H$130 -> 1.584 | E130: =$E$7*$H$130 -> 1.188 | F130: =$F$7*$H$130 -> 0.792 | G130: è | H130: 0.033
A131: 14th | B131: =$B$7*$H$131 -> 2.088 | C131: =$C$7*$H$131 -> 1.74 | D131: =$D$7*$H$131 -> 1.392 | E131: =$E$7*$H$131 -> 1.044 | F131: =$F$7*$H$131 -> 0.696 | G131: è | H131: 0.029
A132: 15th | B132: =$B$7*$H$132 -> 1.8 | C132: =$C$7*$H$132 -> 1.5 | D132: =$D$7*$H$132 -> 1.2 | E132: =$E$7*$H$132 -> 0.9 | F132: =$F$7*$H$132 -> 0.6 | G132: è | H132: 0.025
A133: 16th | B133: =$B$7*$H$133 -> 1.512 | C133: =$C$7*$H$133 -> 1.26 | D133: =$D$7*$H$133 -> 1.008 | E133: =$E$7*$H$133 -> 0.756 | F133: =$F$7*$H$133 -> 0.504 | G133: è | H133: 0.021
A134: 17th | B134: =$B$7*$H$134 -> 1.224 | C134: =$C$7*$H$134 -> 1.02 | D134: =$D$7*$H$134 -> 0.816 | E134: =$E$7*$H$134 -> 0.612 | F134: =$F$7*$H$134 -> 0.408 | G134: è | H134: 0.017
A135: 18th | B135: =$B$7*$H$135 -> 1.008 | C135: =$C$7*$H$135 -> 0.84 | D135: =$D$7*$H$135 -> 0.672 | E135: =$E$7*$H$135 -> 0.504 | F135: =$F$7*$H$135 -> 0.336 | G135: è | H135: 0.014
A136: 19th | B136: =$B$7*$H$136 -> 0.864 | C136: =$C$7*$H$136 -> 0.72 | D136: =$D$7*$H$136 -> 0.576 | E136: =$E$7*$H$136 -> 0.432 | F136: =$F$7*$H$136 -> 0.288 | G136: è | H136: 0.012
A137: 20th | B137: =$B$7*$H$137 -> 0.72 | C137: =$C$7*$H$137 -> 0.6 | D137: =$D$7*$H$137 -> 0.48 | E137: =$E$7*$H$137 -> 0.36 | F137: =$F$7*$H$137 -> 0.24 | G137: è | H137: 0.01
A138: Totals | B138: =SUM(B118:B137) -> 72 | C138: =SUM(C118:C137) -> 60 | D138: 48 | E138: 36 | F138: 24 | G138: =SUM(B138:F138) -> 240 | H138: =SUM(H118:H137) -> 1
A140: For 1501 or More riders 30 places
A141: Placings | B141: 1D | C141: 2D | D141: 3D | E141: 4D | F141: 5D
A142: 1st | B142: =$B$7*$H142 -> 8.64 | C142: =$C$7*$H142 -> 7.2 | D142: =$D$7*$H142 -> 5.76 | E142: =$E$7*$H142 -> 4.32 | F142: =$F$7*$H142 -> 2.88 | G142: è | H142: 0.12
A143: 2nd | B143: =$B$7*$H143 -> 6.84 | C143: 5.7 | D143: 4.56 | E143: 3.42 | F143: 2.28 | G143: è | H143: 0.095
A144: 3rd | B144: =$B$7*$H144 -> 5.256 | C144: 4.38 | D144: 3.504 | E144: 2.628 | F144: 1.752 | G144: è | H144: 0.073
A145: 4th | B145: =$B$7*$H145 -> 4.464 | C145: 3.72 | D145: 2.976 | E145: 2.232 | F145: 1.488 | G145: è | H145: 0.062
A146: 5th | B146: 3.6 | C146: 3 | D146: 2.4 | E146: 1.8 | F146: 1.2 | G146: è | H146: 0.05
A147: 6th | B147: 3.24 | C147: 2.7 | D147: 2.16 | E147: 1.62 | F147: 1.08 | G147: è | H147: 0.045
A148: 7th | B148: 3.096 | C148: 2.58 | D148: 2.064 | E148: 1.548 | F148: 1.032 | G148: è | H148: 0.043
A149: 8th | B149: 2.88 | C149: 2.4 | D149: 1.92 | E149: 1.44 | F149: 0.96 | G149: è | H149: 0.04
A150: 9th | B150: 2.664 | C150: 2.22 | D150: 1.776 | E150: 1.332 | F150: 0.888 | G150: è | H150: 0.037
A151: 10th | B151: 2.52 | C151: 2.1 | D151: 1.68 | E151: 1.26 | F151: 0.84 | G151: è | H151: 0.035
A152: 11th | B152: 2.376 | C152: 1.98 | D152: 1.584 | E152: 1.188 | F152: 0.792 | G152: è | H152: 0.033
A153: 12th | B153: 2.232 | C153: 1.86 | D153: 1.488 | E153: 1.116 | F153: 0.744 | G153: è | H153: 0.031
A154: 13th | B154: 2.088 | C154: 1.74 | D154: 1.392 | E154: 1.044 | F154: 0.696 | G154: è | H154: 0.029
A155: 14th | B155: 1.944 | C155: 1.62 | D155: 1.296 | E155: 0.972 | F155: 0.648 | G155: è | H155: 0.027
A156: 15th | B156: 1.8 | C156: 1.5 | D156: 1.2 | E156: 0.9 | F156: 0.6 | G156: è | H156: 0.025
A157: 16th | B157: 1.728 | C157: 1.44 | D157: 1.152 | E157: 0.864 | F157: 0.576 | G157: è | H157: 0.024
A158: 17th | B158: 1.656 | C158: 1.38 | D158: 1.104 | E158: 0.828 | F158: 0.552 | G158: è | H158: 0.023
A159: 18th | B159: 1.584 | C159: 1.32 | D159: 1.056 | E159: 0.792 | F159: 0.528 | G159: è | H159: 0.022
A160: 19th | B160: 1.512 | C160: 1.26 | D160: 1.008 | E160: 0.756 | F160: 0.504 | G160: è | H160: 0.021
A161: 20th | B161: 1.44 | C161: 1.2 | D161: 0.96 | E161: 0.72 | F161: 0.48 | G161: è | H161: 0.02
A162: 21st | B162: 1.368 | C162: 1.14 | D162: 0.912 | E162: 0.684 | F162: 0.456 | G162: è | H162: 0.019
A163: 22nd | B163: 1.296 | C163: 1.08 | D163: 0.864 | E163: 0.648 | F163: 0.432 | G163: è | H163: 0.018
A164: 23rd | B164: 1.224 | C164: 1.02 | D164: 0.816 | E164: 0.612 | F164: 0.408 | G164: è | H164: 0.017
A165: 24th | B165: 1.152 | C165: 0.96 | D165: 0.768 | E165: 0.576 | F165: 0.384 | G165: è | H165: 0.016
A166: 25th | B166: 1.08 | C166: 0.9 | D166: 0.72 | E166: 0.54 | F166: 0.36 | G166: è | H166: 0.015
A167: 26th | B167: 1.008 | C167: 0.84 | D167: 0.672 | E167: 0.504 | F167: 0.336 | G167: è | H167: 0.014
A168: 27th | B168: 0.936 | C168: 0.78 | D168: 0.624 | E168: 0.468 | F168: 0.312 | G168: è | H168: 0.013
A169: 28th | B169: 0.864 | C169: 0.72 | D169: 0.576 | E169: 0.432 | F169: 0.288 | G169: è | H169: 0.012
A170: 29th | B170: 0.792 | C170: 0.66 | D170: 0.528 | E170: 0.396 | F170: 0.264 | G170: è | H170: 0.011
A171: 30th | B171: 0.72 | C171: 0.6 | D171: 0.48 | E171: 0.36 | F171: 0.24 | G171: è | H171: 0.01
A172: Totals | B172: =SUM(B142:B171) -> 72 | C172: =SUM(C142:C171) -> 60 | D172: 48 | E172: 36 | F172: 24 | G172: =SUM(B172:F172) -> 240 | H172: =SUM(H142:H171) -> 1

Sheet DON'T TOUCH (hidden)
A2: Yes | C2: S | D2: 5 | E2: X
C3: A | D3: 10
C4: Y | D4: 15
C5: P | D5: BP
D6: SCR
